Cogmind - Beta 10.2 @@@ ROGUE MODE // 2020.12.20 @ 09:08:10 Player: JackNine Result: Escaped! Performance ------------- Evolutions (9) 4500 Regions Visited (35) 7000 Robots Destroyed (630) 3150 Value Destroyed (38046) 38046 Prototype IDs (242) 4840 Alien Tech Used (11) 2200 Bonus (41461) 41461 TOTAL SCORE: 101197 Bonus ------- Triggered High Security 1000 High Alert Combat Kills 15754 Follower Combat Kills 1074 Met Data Miner 300 Used Data Conduit 3000 Met Imprinter 300 Destroyed Z-Imprinter 1000 Exposed GOLEM Chamber 500 Met Warlord at Base 500 MAIN.C Attacked Warlord 500 Warlord Defense Kill 428 Found Hidden Lab 3000 Decrypted A0 Command 3000 Met Warlord at Research 2000 Invited to Help at Command 2000 Scanned by Researcher 500 Pursued by Intercept 2000 Met Sigix 2000 Win 3000 Friendly Fire -395 Cogmind --------- Core Integrity 950/1600 Matter 237/300 Energy 805/1300 System Corruption 4% Temperature Cool (0) Movement Core (150) Ox2 Location To Epsilon Eridani Parts ------- > --- POWER (3) -------- Vortex Chain Reactor > --- PROPULSION (4) --- (None) > --- UTILITY (14) ----- Improved Energy Well Experimental Core Analyzer Experimental Armor Integrity Analyzer > --- WEAPON (5) ------- (None) > --- INVENTORY (6) ---- Experimental Matter Compressor (500) Peak State ------------ > --- POWER ------------ Quantum Reactor Vortex Chain Reactor > --- PROPULSION ------- Biometal Heavy Treads Biometal Heavy Treads > --- UTILITY ---------- Experimental Heat Sink High-capacity Storage Unit High-capacity Storage Unit High-capacity Storage Unit Experimental Energy Well Experimental Targeting Computer Experimental Core Analyzer Experimental Armor Integrity Analyzer Experimental Phase Shifter Heavy Regenerative Plating AEGIS Remote Shield Deep Network Scanner System Purifier > --- WEAPON ----------- EMDS Sigix Broadsword > --- INVENTORY -------- Biometal Heavy Treads Biometal Heavy Treads Improved Matter Compressor Surveybot 24 Chip Zionite Weapon Casing Heavy Armor Plating Advanced Thermal Shield EM Dispersion Field Point Defense System Transdimensional Reconstructor Integrated Dissipator Subatomic Replicator EMDS Potential Cannon Linked Autogun Linked Autogun Linked Autogun Gamma Bomb Array Sigix Terminator [Rating: 238] Favorites ----------- Power Assembled Flux Generator Engine Heavy Deuterium Engine Reactor Assembled Flux Generator Propulsion Light Treads Treads Light Treads Leg Assembled Alloy Leg Wheel High-density Centrium Wheel Utility High-capacity Storage Unit Device Long-range Sensor Array Storage High-capacity Storage Unit Processor Advanced Signal Interpreter Hackware Deep Network Scanner Protection Improved Weapon Shielding Weapon Assembled Focal Cannon Energy Gun Heavy EM Shotgun Energy Cannon Assembled Focal Cannon Ballistic Gun Enhanced Autogun Ballistic Cannon Bore Cannon Launcher Precision Grenade Launcher Slashing Weapon Phasing Sabre Build | -11 -10 -10 -9 -9 -8 -7 -7 -7 -7 -7 -6 -6 -6 -6 -6 -6 -6 -5 -5 -5 -5 -5 -4 -4 -4 -4 -4 -4 -3 -3 -2 -2 -2 -1 -1 ------- Run | Scr Mat Min Mat Min Mat Fac Low Low Zio Dee Pro Fac Was Fac Low Low Dat Pro Fac Upp Upp War Pro Fac Was Fac Arm Lab Res Tes Res Qua Sec Acc Com Slots Evolved 16 | . . . 2 . 2 2 . . . . . 2 . . . . . . 2 . . . . 2 . . . . 2 . 2 . . . . Power 1 | . . . . . . . . . . . . 1 . . . . . . . . . . . . . . . . . . . . . . . Propulsion 2 | . . . . . 1 . . . . . . . . . . . . . . . . . . 1 . . . . . . . . . . . Utility 12 | . . . 2 . 1 2 . . . . . 1 . . . . . . 2 . . . . 1 . . . . 2 . 1 . . . . Weapon 1 | . . . . . . . . . . . . . . . . . . . . . . . . . . . . . . . 1 . . . . Parts Attached 666 | 7 16 4 26 5 45 16 10 19 16 31 2 11 7 3 8 21 4 6 7 7 6 9 1 6 12 30 47 16 22 8 30 43 124 11 30 Power 44 | 1 1 . 2 . 2 1 . . 1 3 . . . . . 2 . . . . . . . . . . 1 3 . . 3 1 19 2 2 Engine 9 | 1 1 . 2 . 2 1 . . 1 1 . . . . . . . . . . . . . . . . . . . . . . . . . Core . | . . . . . . . . . . . . . . . . . . . . . . . . . . . . . . . . . . . . Reactor 35 | . . . . . . . . . . 2 . . . . . 2 . . . . . . . . . . 1 3 . . 3 1 19 2 2 Propulsion 67 | 2 1 . 7 . 10 . . 3 3 4 . . 2 . 2 2 . . . . . 1 . 1 1 . 5 1 . 2 4 . 12 . 4 Treads 65 | 2 1 . 7 . 10 . . 3 3 3 . . 2 . 2 2 . . . . . 1 . 1 1 . 5 1 . 1 4 . 12 . 4 Leg 1 | . . . . . . . . . . 1 . . . . . . . . . . . . . . . . . . . . . . . . . Wheel 1 | . . . . . . . . . . . . . . . . . . . . . . . . . . . . . . 1 . . . . . Hover . | . . . . . . . . . . . . . . . . . . . . . . . . . . . . . . . . . . . . Flight . | . . . . . . . . . . . . . . . . . . . . . . . . . . . . . . . . . . . . Utility 368 | 2 2 . 8 . 8 11 4 11 9 13 1 11 4 3 5 11 1 4 6 4 5 4 1 5 10 22 36 9 18 5 20 31 68 4 12 Device 209 | . . . 3 . . 6 2 6 3 4 1 5 3 2 3 4 . 2 2 3 3 3 1 3 6 17 22 4 10 3 15 25 36 4 8 Storage 40 | 2 2 . 2 . 6 . . . 3 1 . . . 1 . 2 . . 1 . . . . . . . . 3 2 2 4 2 5 . 2 Processor 12 | . . . . . . 3 . 1 1 . . 1 . . . . . . 1 . . . . . 1 . 1 . . . 1 . 2 . . Hackware 3 | . . . . . . . . . . . . . . . . . . . 1 . . . . 1 . . . . . . . . 1 . . Protection 104 | . . . 3 . 2 2 2 4 2 8 . 5 1 . 2 5 1 2 1 1 2 1 . 1 3 5 13 2 6 . . 4 24 . 2 Artifact . | . . . . . . . . . . . . . . . . . . . . . . . . . . . . . . . . . . . . Weapon 187 | 2 12 4 9 5 25 4 6 5 3 11 1 . 1 . 1 6 3 2 1 3 1 4 . . 1 8 5 3 4 1 3 11 25 5 12 Energy Gun 19 | 1 3 . 2 . 8 . . . . 3 . . . . . . . . . . . . . . . . . . . . . . . . 2 Energy Cannon 42 | . . . 5 2 7 . . . . 1 . . . . . 2 . . . . . 1 . . . 3 . 1 . . . 3 11 2 4 Ballistic Gun 46 | 1 5 2 . . 6 1 2 2 1 . . . . . . . . . . . . . . . . . 2 2 2 . 3 4 9 2 2 Ballistic Cannon 26 | . . . . . . . 2 1 1 2 . . 1 . 1 2 2 . 1 1 1 1 . . 1 4 1 . . 1 . . 1 1 1 Launcher 37 | . . 1 . 3 4 1 2 1 . 3 1 . . . . 2 1 2 . 2 . 2 . . . 1 2 . 2 . . 1 3 . 3 Special Weapon . | . . . . . . . . . . . . . . . . . . . . . . . . . . . . . . . . . . . . Impact Weapon . | . . . . . . . . . . . . . . . . . . . . . . . . . . . . . . . . . . . . Slashing Weapon 17 | . 4 1 2 . . 2 . 1 1 2 . . . . . . . . . . . . . . . . . . . . . 3 1 . . Piercing Weapon . | . . . . . . . . . . . . . . . . . . . . . . . . . . . . . . . . . . . . Special Melee Weapon . | . . . . . . . . . . . . . . . . . . . . . . . . . . . . . . . . . . . . Unidentified Prototypes 39 | . . . 1 . 3 2 . . 1 8 . 2 2 1 1 . . . 1 . . . . 1 . . 1 3 . 1 1 5 5 . . Parts Lost 92 | . . . 4 . . . . 3 1 12 1 1 . 1 . 8 . 1 . 2 . . . . . 4 4 . . . 1 2 18 2 27 Power 10 | . . . 1 . . . . . . 1 . . . . . 1 . . . . . . . . . . 1 . . . 1 . 4 . 1 Propulsion 20 | . . . 1 . . . . 3 . 5 . . . . . 2 . . . . . . . . . . . . . . . . 3 . 6 Utility 38 | . . . 1 . . . . . 1 4 1 1 . 1 . 2 . 1 . 1 . . . . . 2 2 . . . . 1 8 1 11 Weapon 24 | . . . 1 . . . . . . 2 . . . . . 3 . . . 1 . . . . . 2 1 . . . . 1 3 1 9 Highest Loss Streak 16 | . . . 2 . . . . 1 1 6 1 1 . 1 . 8 . 1 . 1 . . . . . 2 2 . . . 1 1 4 2 16 Average Slot Usage (%) 84 | . 99 100 98 100 98 97 100 99 81 93 92 85 78 79 80 79 79 86 88 86 87 87 88 90 79 81 79 68 81 73 74 70 76 72 71 Engine 2 | . 14 14 11 11 9 7 7 7 5 4 . . . . . . . . . . . . . . . . . . . . . . . . . Reactor 4 | . . . . . . . . . . 2 7 6 6 6 6 5 6 6 5 5 5 5 5 5 5 4 5 4 8 8 7 8 9 6 6 Treads 13 | . 27 28 22 22 27 23 23 22 21 14 . . 12 13 12 11 6 6 5 5 5 8 11 15 11 10 9 9 8 8 8 8 9 7 6 Leg 2 | . . . . . . . . . . 6 23 20 . . . . 9 12 11 11 11 3 . . . . . . . . . . . . . Device 11 | . . . 8 11 9 16 14 10 11 11 15 11 12 12 11 16 15 17 15 14 10 14 21 19 5 13 13 8 12 8 13 10 11 9 10 Storage 21 | . 28 28 23 22 25 23 23 23 15 25 30 26 25 25 25 25 25 25 22 22 22 22 22 20 20 20 20 15 20 17 15 16 16 18 17 Processor 5 | . . . . . . 11 15 10 6 1 . 4 6 6 6 . . . 5 5 5 5 5 5 9 10 10 9 8 8 10 12 11 7 7 Hackware 1 | . . . . . . . . . . . . . . . . . . . 5 5 5 5 5 10 10 6 5 4 4 4 1 . 3 3 2 Protection 4 | . . . 10 11 8 . . 7 5 10 . 2 . . . . 2 . . . 4 5 . . 2 1 1 4 5 8 6 6 5 7 6 Energy Cannon 6 | . . . 16 18 3 . . . . 5 7 12 12 13 12 10 6 12 11 11 11 11 11 10 10 8 9 7 8 4 6 4 2 2 2 Ballistic Gun 4 | . 15 27 4 . 9 11 13 14 6 1 . . . . . . . . . . . . . . . . . 3 3 . 1 4 3 6 5 Ballistic Cannon 1 | . . . . . . . . . 2 2 . . . . 4 5 5 1 5 . 4 3 . . . 6 3 . . 3 2 . . . . Naked Turns . | . . . . . . . . . . . . . . . . . . . . . . . . . . . . . . . . . . . . Heaviest Build 262 | 17 45 45 70 70 101 104 112 112 112 124 124 172 154 154 172 181 186 183 186 178 186 201 192 192 221 198 199 222 218 229 253 262 256 247 244 Greatest Support 160 | 40 40 40 40 40 60 60 60 60 60 84 84 84 100 100 100 100 100 60 60 60 60 100 100 128 140 140 150 160 150 150 150 150 150 145 145 Greatest Overweight (x) 6 | . 1 1 1 1 1 1 1 2 2 4 1 2 2 1 1 1 6 3 3 2 3 3 1 1 1 1 1 1 1 2 1 1 2 1 2 Average Overweight (x) 1 | . . 1 1 1 . 1 1 1 . 1 1 1 1 1 1 1 2 2 2 2 2 1 1 1 1 1 1 . 1 1 1 1 1 1 . Largest Inventory Capacity 30 | 8 16 16 20 18 26 26 26 26 26 26 26 26 26 26 26 28 28 28 28 28 28 28 28 28 28 28 28 28 28 28 28 28 30 30 30 Average Capacity 25 | 6 9 16 17 18 21 26 26 26 18 26 26 26 26 25 26 27 28 28 28 28 28 28 28 28 28 28 28 24 28 28 28 28 28 30 28 Most Carried 30 | 4 14 16 19 18 25 26 26 26 26 26 26 26 26 26 26 26 26 27 28 28 28 28 28 28 28 28 28 28 28 28 28 28 30 30 30 Average Carried 24 | 3 8 14 16 17 20 25 26 25 18 25 25 25 25 25 25 21 24 26 26 27 28 27 28 26 27 26 27 23 27 27 27 27 26 24 26 Final Capacity 30 | 8 16 16 18 18 26 26 26 26 26 26 26 26 26 26 26 28 28 28 28 28 28 28 28 28 28 28 28 28 28 28 28 28 30 30 6 Final Carried 30 | 4 14 16 17 18 25 26 26 26 26 26 25 26 26 26 26 22 26 26 28 28 28 28 28 28 28 26 28 28 28 28 28 25 25 30 1 Class Distribution -------------------- 32% | Hauler-Mutant 15% | Hauler-Golem 14% | Mutant 12% | Generator-Mutant 8% | Hauler-Skirmisher 3% | Scavenger-Mutant 3% | Hacker-Mutant Dominant Class ---------------- Mutant | -10/Materials Mutant | -10/Mines Mutant | -9/Materials Mutant | -9/Mines Hauler-Mutant | -8/Materials Hauler-Mutant | -7/Factory Hauler-Mutant | -7/Lower Caves Hauler-Mutant | -7/Lower Caves Hauler-Mutant | -7/Zion Hauler-Mutant | -7/Deep Caves Hauler-Golem | -6/Proximity Caves Hauler-Golem | -6/Factory Hauler-Mutant | -6/Waste Hauler-Mutant | -6/Factory Hauler-Mutant | -6/Lower Caves Hauler-Golem | -6/Lower Caves Hauler-Golem | -6/Data Miner Hauler-Golem | -5/Proximity Caves Hauler-Mutant | -5/Factory Hauler-Skirmisher | -5/Upper Caves Hauler-Skirmisher | -5/Upper Caves Hauler-Mutant | -5/Warlord Hauler-Skirmisher | -4/Proximity Caves Hacker-Mutant | -4/Factory Hacker-Mutant | -4/Waste Hauler-Mutant | -4/Factory Hauler-Mutant | -4/Armory Hauler-Gunner | -4/Lab Generator-Mutant | -3/Research Generator-Mutant | -3/Testing Generator-Mutant | -2/Research Generator-Mutant | -2/Quarantine Generator-Mutant | -2/Section 7 Scavenger-Tank | -1/Access Generator-Mutant | -1/Command Resources | -11 -10 -10 -9 -9 -8 -7 -7 -7 -7 -7 -6 -6 -6 -6 -6 -6 -6 -5 -5 -5 -5 -5 -4 -4 -4 -4 -4 -4 -3 -3 -2 -2 -2 -1 -1 ----------- Run | Scr Mat Min Mat Min Mat Fac Low Low Zio Dee Pro Fac Was Fac Low Low Dat Pro Fac Upp Upp War Pro Fac Was Fac Arm Lab Res Tes Res Qua Sec Acc Com Matter Collected 21563 | 276 164 229 347 80 870 . 364 358 30 549 80 90 60 70 118 378 249 117 129 100 67 289 23 1 169 620 1244 311 449 588 1413 2621 6682 1072 1356 Remotely 723 | . . . . . . . . . . . . . . . . . . . . . . . . . . . . . . . . . . 503 220 Salvage Created 40782 | 64 266 227 1561 269 1450 49 336 280 . 793 142 793 1755 46 464 670 221 119 342 140 55 137 69 82 1746 936 2633 311 1470 588 2409 4558 11118 772 3911 Parts 1535 | 2 14 17 81 15 72 4 8 12 . 29 5 41 26 3 20 25 5 2 24 8 1 11 5 15 28 44 111 10 62 24 99 172 358 40 142 Haulers Intercepted 15 | . 1 . 3 . 6 . . . . . . . . . . . . . . . . . . . . 1 . . . . 2 1 1 . . Recyclers Shooed 16 | . 1 . . . 3 1 . . . . . . . . . . . . . . . . . . . . . . 1 5 1 . . . 4 Parts Field Recycled . | . . . . . . . . . . . . . . . . . . . . . . . . . . . . . . . . . . . . Retrieved Matter . | . . . . . . . . . . . . . . . . . . . . . . . . . . . . . . . . . . . . Parts Self-Destructed 174 | . . . . . . . 8 30 3 . 5 . . . 23 22 . 2 . 6 1 70 4 . . . . . . . . . . . . Prevented 24 | . . . . . . . 10 . . . . . . . . 5 . . . . . 9 . . . . . . . . . . . . . Kills | -11 -10 -10 -9 -9 -8 -7 -7 -7 -7 -7 -6 -6 -6 -6 -6 -6 -6 -5 -5 -5 -5 -5 -4 -4 -4 -4 -4 -4 -3 -3 -2 -2 -2 -1 -1 ------- Run | Scr Mat Min Mat Min Mat Fac Low Low Zio Dee Pro Fac Was Fac Low Low Dat Pro Fac Upp Upp War Pro Fac Was Fac Arm Lab Res Tes Res Qua Sec Acc Com Combat Hostiles Destroyed 541 | . 5 9 27 9 25 1 6 5 . 10 7 13 6 1 10 12 4 3 5 6 1 6 4 5 6 16 42 4 16 2 31 52 132 5 55 Melee 5 | . . . . . . . . . . 1 . . . . . . . . . . . . . . . . . . . . . . 4 . . Guns 143 | . 5 8 6 . 16 1 1 5 . . . . . . . . . . . . . . . . . . 4 . 2 . 8 24 42 5 16 Cannons 227 | . . . 20 7 1 . . . . 1 1 13 6 1 10 8 2 3 5 1 1 1 1 2 6 13 30 4 13 2 23 13 32 . 7 AOE 87 | . . 1 1 2 6 . 5 . . 7 6 . . . . 2 2 . . 5 . 5 3 3 . 2 5 . 1 . . . 8 . 23 Classes Destroyed 31 | 1 3 1 7 1 2 1 . . . 2 . . 1 . . . . . . . . 1 . . . . 1 . . . 3 5 2 . . Worker 16 | . 1 . . 1 1 1 . . . . . 1 . . . . . . . . . . . 1 . . . . . 1 2 2 2 . 3 Builder 5 | . . . 1 . . . . . . . . . . . . . . . . . . . . . . 1 . . . . . 1 2 . . Tunneler 2 | . . . 1 . . . . . . . . . . . . . . . . . . . . . . . . . . . . . . 1 . Hauler 15 | . 1 . 3 . 6 . . . . . . . . . . . . . . . . . . . . 1 . . . . 2 1 1 . . Recycler 17 | 1 . . 2 . 1 . . . . . . . . . . . . . . . . . . . . . . . 1 4 . . 2 2 4 Carrier 3 | . . . . . . . . . . . . . . . . . . . . . . . . . . . . . . . 1 . . . 2 Mechanic 3 | . . . 1 . . . . . . . . . . . . 1 . . . . . . . . . . . . . . . . 1 . . Operator 5 | . . . 1 . . . . . . . . . . . . . . . . . . . . . . . . . . . 1 2 1 . . Watcher 18 | . . . . . 3 . . . . . . 2 . . . . . . 1 . . . . 1 . . 4 . 1 . 1 2 . 1 2 Swarmer 75 | . . 5 . 1 10 . . 3 . . 4 3 . . 4 3 . . . 5 . 5 4 5 . 4 4 . . . 7 . 5 . 3 Saboteur 6 | . . . . . . . . . . . . . . . . . . . . . . . . . . . . . . . . 1 4 . 1 Grunt 184 | . 5 4 19 6 10 . 6 . . . 3 2 . 1 2 4 . 2 . . . . . . . 5 11 3 9 . 3 17 52 . 20 Brawler 24 | . . . 3 . . . . 1 . . . . . . . 2 . 1 . . . . . . . . 1 . . . 2 2 7 . 5 Duelist 27 | . . . 1 . . . . 1 . . . . . . 1 1 . . . . . . . . . . 4 . . . . 2 10 . 7 Protector 4 | . . . . . . . . . . . . . . . . . . . . . . 1 . . . . . . . . . 1 2 . . Researcher 3 | . . . . . . . . . . . . . . . . . . . . . . . . . . . . . . . . 2 1 . . Sentry 36 | . . . 4 . 4 . . 1 . . . 1 . . . 2 . . 2 1 . . . . . 1 5 . 4 . . . 9 2 . Demolisher 7 | . . . . . . . . . . . . . . . . . . . . . . . . . . . 4 . . . 3 . . . . Specialist 1 | . . . . . . . . . . . . . . . . . . . . . . . . . . . . . . . . 1 . . . Hunter 44 | . . . . . 1 . . . . . . 6 . . 3 . . . . . 1 . . . . 2 2 . . . 2 5 16 2 4 Programmer 59 | . . . . . . 1 . . . . . 1 . . . . . . 3 . . . . . . 4 9 . 3 2 4 14 11 . 7 Q-Series 4 | . . . . . . . . . . . . . . . . . . . . . . . . . . . . . . . . . 4 . . Behemoth 4 | . . . . . . . . . . . . . . . . . . . . . . . . . . . . . . . . . 1 1 2 Compactor 12 | . . . . . . . . . . . . . 6 . . . . . . . . . . . 6 . . . . . . . . . . S7 Guard 1 | . . . . . . . . . . . . . . . . . . . . . . . . . . . . . . . . . 1 . . Enhanced Grunt 4 | . . . . . . . . . . . . . . . . . 4 . . . . . . . . . . . . . . . . . . Lightning 3 | . . . . . . . . . . . . . . . . . . . . . . . . . . . . . . . . 3 . . . Tracker 9 | . . . . . . . . . . . . . . . . . . . . . . . . . . . 1 . . . 2 2 4 . . Combat Programmer 8 | . . . . . . . . . . . . . . . . . . . . . . . . . . . 1 . . . 1 2 4 . . Investigator 1 | . . . . . . . . . . . . . . . . . . . . . . . . . . . . . . . . . . . 1 Striker 8 | . . . . . . . . . . . . . . . . . . . . . . . . . . . . . . . 6 . . . 2 Executioner 4 | . . . . . . . . . . . . . . . . . . . . . . . . . . . . . . . 1 . . . 3 Alpha 7 4 | . . . . . . . . . . . . . . . . . . . . . . . . . . . . . . . . 1 2 . 1 Fortress 1 | . . . . . . . . . . . . . . . . . . . . . . . . . . . . . . . . 1 . . . Z-Technician 5 | . . . . . . . . . . 5 . . . . . . . . . . . . . . . . . . . . . . . . . Z-Light 8 | . . . . . . . . . . 8 . . . . . . . . . . . . . . . . . . . . . . . . . Assembled 2 | . . . . 2 . . . . . . . . . . . . . . . . . . . . . . . . . . . . . . . Golem 1 | . . . . . . . . . . 1 . . . . . . . . . . . . . . . . . . . . . . . . . Thug 1 | . . . . . 1 . . . . . . . . . . . . . . . . . . . . . . . . . . . . . . Best Kill Streak 23 | 1 2 3 5 3 4 1 3 2 . 6 4 6 1 1 6 5 4 1 3 6 1 3 4 7 3 5 9 3 5 4 8 11 17 3 23 Combat Bots Only 23 | . 2 3 4 3 4 1 3 2 . 6 4 4 1 1 6 5 4 1 3 6 1 3 4 5 3 5 8 3 5 2 8 10 17 3 23 Max Kills in Single Turn 10 | 1 1 2 2 2 4 1 2 1 . 2 2 1 1 1 2 2 1 1 1 4 1 2 3 3 1 2 2 1 1 1 2 2 2 2 10 Gunslinging 1 | . . 1 . . . . . . . . . . . . . . . . . . . . . . . . . . . . 1 . . . . Exploded 8 | . . 1 1 2 3 . 2 . . 2 2 . . . . 2 1 . . 4 . 2 3 2 . 2 2 . 1 . . . 2 . 8 Melee 1 | . . . . . . . . . . 1 . . . . . . . . . . . . . . . . . . . . . . 1 . . Uniques/NPCs Destroyed 3 | . . . . . . . . . . 1 . . . . . . 1 . . . . . . . . . . 1 . . . . . . . Z-Imprinter (-7/Deep Caves) Data Miner (-6/Data Miner) A5 (-4/Lab) Combat | -11 -10 -10 -9 -9 -8 -7 -7 -7 -7 -7 -6 -6 -6 -6 -6 -6 -6 -5 -5 -5 -5 -5 -4 -4 -4 -4 -4 -4 -3 -3 -2 -2 -2 -1 -1 -------- Run | Scr Mat Min Mat Min Mat Fac Low Low Zio Dee Pro Fac Was Fac Low Low Dat Pro Fac Upp Upp War Pro Fac Was Fac Arm Lab Res Tes Res Qua Sec Acc Com Damage Taken 40777 | . 237 220 1030 248 937 16 371 537 284 2777 430 798 . 208 793 2258 692 191 128 395 82 452 12 86 . 1462 2822 184 474 171 1377 2780 9656 970 7699 Core 2899 | . 10 13 94 55 131 . 31 42 57 391 39 50 . . 76 194 72 . 39 68 . 84 . . . 33 194 22 57 10 . 79 408 41 609 Absorbed by Shields 17850 | . . . . . . . . . . . . . . . . . . . . . . 137 3 25 . 259 1400 . 244 153 932 2450 8092 927 3228 Reduced by Siege Mode 1092 | . . . . . . . . . . . . . . . 43 86 . . . . . . . . . 37 146 65 17 . 32 92 279 33 262 Core Remaining (%) 69 | 100 . 90 . 62 76 . . . . . 20 . . . . . . 53 . . . . 80 . . . . 78 . 94 . . 48 . 59 Volleys Fired 1831 | 2 25 16 72 15 92 3 14 29 . 46 54 41 44 10 29 28 14 9 33 16 5 34 11 14 23 40 126 47 63 37 84 264 344 38 109 Largest 3 | 2 2 2 2 2 2 2 2 2 . 2 2 2 2 2 3 3 3 3 3 3 3 3 2 2 2 3 3 3 3 2 3 3 2 3 3 Hottest 320 | 60 90 53 136 136 108 50 61 73 . 119 61 50 50 50 107 119 107 86 107 107 107 107 50 50 50 162 130 85 85 125 150 200 200 320 294 Shots Fired 2878 | 4 48 32 136 28 166 5 21 52 . 58 61 75 86 12 59 53 35 22 47 31 13 44 20 18 41 74 238 67 122 42 160 328 465 73 142 Gun 1025 | 4 48 31 36 . 144 5 9 44 . 4 . . . . . . . . . . . . . . . . 15 18 28 . 49 197 257 65 71 Cannon 1734 | . . . 100 25 16 . 2 8 . 42 56 75 86 12 59 50 28 19 47 29 13 40 19 16 40 73 203 49 90 42 111 131 186 8 59 Launcher 119 | . . 1 . 3 6 . 10 . . 12 5 . . . . 3 7 3 . 2 . 4 1 2 1 1 20 . 4 . . . 22 . 12 Special . | . . . . . . . . . . . . . . . . . . . . . . . . . . . . . . . . . . . . Kinetic 1143 | 2 24 31 24 . 108 5 11 52 . 9 . . . . 4 14 6 . 7 2 3 19 . . . 32 71 18 28 6 71 197 257 69 73 Thermal 1238 | . 12 . 100 25 21 . . . . 12 56 75 86 12 55 23 22 19 40 27 10 21 19 16 40 21 147 49 90 36 89 69 1 4 41 Explosive 46 | . . 1 . 3 2 . . . . 7 5 . . . . 1 7 3 . 2 . 4 1 2 1 1 6 . . . . . . . . Electromagnetic 451 | 2 12 . 12 . 35 . 10 . . 30 . . . . . 15 . . . . . . . . . 20 14 . 4 . . 62 207 . 28 Robot Hit Streak 89 | 3 12 6 14 9 25 6 6 12 . 11 4 20 62 8 23 31 4 14 16 6 4 6 1 4 31 13 27 10 19 8 22 44 89 51 37 Robot Miss Streak 12 | 1 2 12 3 1 5 1 1 3 . 3 2 3 1 1 1 4 2 1 1 1 1 2 1 1 1 2 3 2 2 4 7 4 3 3 2 Penetration Max 2 | . . . . . . . . . . 1 . . . . . 1 . . . . . . . . . . 1 1 1 . 2 1 1 . 1 Secondary Targets 19 | . . 1 2 . 1 . . 3 . . . . . . . . . . . . . . . . . . . . . . 1 . 8 . 3 Max Gunslinging Chain 1 | . . 1 1 . 1 . . 1 . . . . . . . . . . . . . . . . . . . . . . 1 . 1 . 1 Capacitor 107 | . . . . . . . . . . . . . . . . . . . . . . . . . . . . . . . . 53 54 . . Shots Hit Robots 2021 | 3 34 20 101 20 111 3 16 28 . 35 13 55 71 5 35 38 10 19 11 5 4 21 1 3 35 49 157 49 66 21 118 273 423 57 111 Core Hits 1483 | 1 13 15 44 13 65 2 14 12 . 40 15 22 13 1 13 21 24 6 6 8 1 16 4 10 12 25 102 17 44 12 104 201 386 44 157 Critical Hits 192 | 1 . . 10 2 1 . . . . 4 . . . . 1 10 . . 1 . . 2 . . . 10 20 . 4 4 46 20 47 . 9 Critical Kills 63 | 1 . . 4 2 1 . . . . . . . . . 1 3 . . . . . . . . . 2 5 . 1 1 19 4 15 . 4 Critical Parts Destroyed 109 | . . . 6 . . . . . . 2 . . . . . 6 . . 1 . . 2 . . . 8 15 . 3 3 21 12 26 . 4 Melee Attacks 132 | . 5 2 9 . . 3 . 3 75 12 . . . . . . . . . . . . . . . . . . . . . 4 19 . . Impact . | . . . . . . . . . . . . . . . . . . . . . . . . . . . . . . . . . . . . Slashing 132 | . 5 2 9 . . 3 . 3 75 12 . . . . . . . . . . . . . . . . . . . . . 4 19 . . Piercing . | . . . . . . . . . . . . . . . . . . . . . . . . . . . . . . . . . . . . Sneak Attacks . | . . . . . . . . . . . . . . . . . . . . . . . . . . . . . . . . . . . . Combat Hostiles . | . . . . . . . . . . . . . . . . . . . . . . . . . . . . . . . . . . . . Follow-up Attacks . | . . . . . . . . . . . . . . . . . . . . . . . . . . . . . . . . . . . . Damage Inflicted 109056 | 41 414 349 2221 578 2569 99 748 457 . 3450 956 2542 3442 220 1521 1765 1337 1045 809 443 181 1156 294 603 1715 2046 8096 1735 3229 826 4893 12613 24126 2256 20281 Guns 27966 | 41 396 251 392 . 1658 68 153 404 . 66 . . . . . . . . . . . . . . . . 379 360 383 . 1730 7007 9949 2256 2473 Cannons 52310 | . . . 1540 348 305 . . 29 . 878 259 2542 3442 220 1521 1282 711 772 809 157 181 670 38 146 1715 1822 6132 1375 2603 774 3142 5512 10116 . 3269 Explosions 27183 | . . 98 60 201 525 . 595 . . 2153 697 . . . . 455 626 273 . 286 . 486 256 457 . 224 1578 . 243 . . 51 3442 . 14477 Melee 1141 | . . . 185 . . . . 24 . 341 . . . . . . . . . . . . . . . . . . . . . . 591 . . Ramming 456 | . 18 . 44 29 81 31 . . . 12 . . . . . 28 . . . . . . . . . . 7 . . 52 21 43 28 . 62 Kinetic 29657 | 11 143 251 242 . 1134 68 153 433 . 122 . . . . 26 261 85 . 11 . . 56 . . . 698 1237 360 383 63 2019 7007 9949 2256 2689 Thermal 49525 | . 123 . 1600 348 306 . . . . 1474 259 2542 3442 220 1495 1005 626 772 798 157 181 614 38 146 1715 411 5274 1375 2603 711 2853 2362 751 . 15324 Explosive 6225 | . . 98 . 201 315 . . . . 590 697 . . . . 192 626 273 . 286 . 486 256 457 . 224 859 . . . . . 665 . . Electromagnetic 22052 | 30 130 . 150 . 733 . 595 . . 911 . . . . . 279 . . . . . . . . . 713 719 . 243 . . 3201 12142 . 2206 Impact . | . . . . . . . . . . . . . . . . . . . . . . . . . . . . . . . . . . . . Slashing 1141 | . . . 185 . . . . 24 . 341 . . . . . . . . . . . . . . . . . . . . . . 591 . . Piercing . | . . . . . . . . . . . . . . . . . . . . . . . . . . . . . . . . . . . . Highest Corruption 12 | . . . . . 4 1 1 1 2 2 2 . . 1 1 5 5 5 . 1 1 1 . . 12 12 6 5 3 3 2 3 8 . 7 Average Corruption 2 | . . . . . 3 1 1 1 1 2 2 . . 1 1 4 5 5 . 1 1 1 . . 10 6 2 3 1 1 1 1 4 . 3 Corruption Purged 49 | . . . . . . . . . . . . . . . . . . . . . . . . . 2 14 4 4 2 . 2 3 15 . 3 Effects 386 | . . . . . 34 3 7 6 3 23 15 . . . 3 44 22 15 . 1 2 2 . . 32 29 22 24 4 5 5 19 50 . 16 Message Errors 102 | . . . . . 8 1 2 2 2 9 6 . . . 3 8 8 4 . . 1 2 . . 6 7 4 6 . 2 . 6 12 . 3 Matter Fused 65 | . . . . . 7 . . . . . . . . . . 17 7 4 . . . . . . 8 4 5 6 . . . 1 5 . 1 Heat Flow Errors 36 | . . . . . 4 . . . . 2 4 . . . . 6 . 1 . . . . . . 3 3 . 3 . . 2 . 7 . 1 Energy Discharges 48 | . . . . . 2 1 1 3 1 8 1 . . . . 2 4 2 . 1 1 . . . 1 7 2 . 1 2 1 3 3 . 1 Parts Rejected 4 | . . . . . 2 . . . . . . . . . . 1 . . . . . . . . . . . . . . . . . . 1 Data Loss (minor) 34 | . . . . . 5 1 2 1 . 1 3 . . . . 4 1 1 . . . . . . 3 1 1 4 1 1 1 1 2 . . Data Loss (major) 15 | . . . . . . . . . . . . . . . . 3 . 2 . . . . . . 1 2 1 2 . . . . 3 . 1 Misfires 2 | . . . . . . . . . . . . . . . . . . 1 . . . . . . 1 . . . . . . . . . . Alerts 1 | . . . . . . . . . . . . . . . . . . . . . . . . . 1 . . . . . . . . . . Misdirections 5 | . . . . . . . . . . . . . . . . . . . . . . . . . 5 . . . . . . . . . . Targeting Errors 64 | . . . . . 6 . 1 . . 2 1 . . . . 3 2 . . . . . . . 3 5 7 3 2 . . 8 15 . 6 Weapon Failures 10 | . . . . . . . 1 . . 1 . . . . . . . . . . . . . . . . 2 . . . 1 . 3 . 2 Overload Shots . | . . . . . . . . . . . . . . . . . . . . . . . . . . . . . . . . . . . . Overflow Damage 3360 | . . . 33 23 21 . 7 . . 410 33 153 . . 32 104 3 25 38 31 29 54 . 10 . 73 398 62 109 94 153 152 350 . 963 Projectiles 2120 | . . . 9 11 14 . . . . 147 26 153 . . 32 50 . 25 38 23 29 54 . 10 . 66 398 62 109 86 153 136 277 . 212 Explosions 982 | . . . . 12 . . 7 . . 121 7 . . . . 54 3 . . 8 . . . . . 7 . . . . . . 12 . 751 Melee 258 | . . . 24 . 7 . . . . 142 . . . . . . . . . . . . . . . . . . . 8 . 16 61 . . Knockbacks 35 | . . . . . 1 . . . . 2 . . . . . 1 1 . . . . . . . . 9 11 . . 4 3 . . . 3 Impact 2 | . . . . . 1 . . . . . . . . . . . . . . . . . . . . . . . . . . . . . 1 Kinetic 33 | . . . . . . . . . . 2 . . . . . 1 1 . . . . . . . . 9 11 . . 4 3 . . . 2 Secondary . | . . . . . . . . . . . . . . . . . . . . . . . . . . . . . . . . . . . . Self-Inflicted Damage 1713 | . . . . 30 82 . . . . 50 . . . . . 9 . 24 . . . 32 . . . . 114 . 33 . . . 499 21 819 Shots 77 | . . . . 1 2 . . . . 1 . . . . . 1 . 1 . . . 1 . . . . 6 . 5 . . . 41 1 17 Rammed 35 | . 2 . 5 2 10 . . . . 2 . . . . . 4 . . . . . . . . . . 2 . . 1 . 2 2 . 3 Targets Rammed 41 | . 2 . 7 3 10 1 . . . 2 . . . . . 4 . . . . . . . . . . 2 . . 2 1 2 2 . 3 Kicked . | . . . . . . . . . . . . . . . . . . . . . . . . . . . . . . . . . . . . Crushed 6 | . . . 2 1 . 1 . . . . . . . . . . . . . . . . . . . . . . . 1 1 . . . . Highest Temperature 380 | . 180 8 239 66 246 8 96 21 . 333 244 . . . 126 353 204 185 48 86 52 18 . 12 221 334 140 320 74 120 257 292 380 315 222 Average Temperature 87 | . 53 4 55 29 84 5 34 8 . 118 75 . . . 52 192 106 49 20 39 18 9 . 9 98 112 24 167 17 57 125 65 112 91 30 Received Heat Transfer 5365 | . 132 75 405 123 225 . 135 54 . 684 156 81 . 39 27 633 114 36 9 36 . 30 . . . 125 254 57 85 . 45 157 873 4 771 Effects 14 | . . . . . . . . . . 2 . . . . . 5 . . . . . . . . . . . 2 . . 5 . . . . Energy Bleed 3 | . . . . . . . . . . 1 . . . . . 1 . . . . . . . . . . . 1 . . . . . . . Interference 9 | . . . . . . . . . . 1 . . . . . 3 . . . . . . . . . . . . . . 5 . . . . Short Circuit 1 | . . . . . . . . . . . . . . . . 1 . . . . . . . . . . . . . . . . . . . Damage (minor) 1 | . . . . . . . . . . . . . . . . . . . . . . . . . . . . 1 . . . . . . . Siege Activations 55 | . . . . . . . . . . . . . . . 2 1 . . . . . . . . . 3 9 2 3 . 3 11 17 1 3 Total Turns 1344 | . . . . . . . . . . . . . . . 53 46 . . . . . . . . . 154 177 83 122 . 88 202 317 18 84 Longest Duration 116 | . . . . . . . . . . . . . . . 46 46 . . . . . . . . . 116 53 69 67 . 65 36 55 18 43 Robots Corrupted 81 | . . . . . 3 . . . . 1 . . . . . 1 . . . . . . . . . 1 3 . . . . 18 46 . 8 Combat Hostiles 76 | . . . . . 2 . . . . 1 . . . . . 1 . . . . . . . . . 1 3 . . . . 14 46 . 8 Parts Fried 199 | . . . . . 6 . 2 . . 13 . . . . . 1 . . . . . . . . . 8 9 . 1 . . 37 104 . 18 Impact Corruptions 4 | . . . . . 1 . . . . 1 . . . . . . . . . . . . . . . . . . . 1 . 1 . . . Robots Melted 2 | . . . . . . . . . . . . . . . . 1 . . . . . . . . . . . . . . . . . . 1 Combat Hostiles 2 | . . . . . . . . . . . . . . . . 1 . . . . . . . . . . . . . . . . . . 1 Parts Melted 25 | . 2 . 5 . . . . 1 . 2 . . . . 2 3 . . . . . . . . . . 1 . 1 1 3 1 1 . 2 Heat Transferred 25494 | . 333 . 2752 629 507 . . . . 525 175 1425 1850 125 825 575 475 425 325 75 100 234 25 75 875 225 2425 812 1250 375 1328 1138 750 . 4861 Parts Sabotaged 2 | . . . . . . . . . . . . . . . . . . . . . . . . . . . . . . . . . 1 . 1 Parts Stolen . | . . . . . . . . . . . . . . . . . . . . . . . . . . . . . . . . . . . . Parts Stripped . | . . . . . . . . . . . . . . . . . . . . . . . . . . . . . . . . . . . . Power Chain Reactions 18 | . . . 1 . 2 . 1 . . 4 . . . . . 1 . . . . . . . . . . 2 . . . . . 5 . 2 Missiles Intercepted . | . . . . . . . . . . . . . . . . . . . . . . . . . . . . . . . . . . . . Alert | -11 -10 -10 -9 -9 -8 -7 -7 -7 -7 -7 -6 -6 -6 -6 -6 -6 -6 -5 -5 -5 -5 -5 -4 -4 -4 -4 -4 -4 -3 -3 -2 -2 -2 -1 -1 ------- Run | Scr Mat Min Mat Min Mat Fac Low Low Zio Dee Pro Fac Was Fac Low Low Dat Pro Fac Upp Upp War Pro Fac Was Fac Arm Lab Res Tes Res Qua Sec Acc Com Peak Influence 4087 | 5 171 198 635 440 303 388 . . . . . 468 133 771 . . . . 111 . . . . 180 71 466 993 . 597 409 766 1214 3141 2089 4087 Initial 1878 | . 3 18 . 240 93 106 . . . . . . 111 . . . . . . . . . . . 63 7 117 . . 335 182 408 682 1878 1222 Average 482 | 2 66 81 349 321 180 210 . . . . . 188 38 205 . . . . 35 . . . . 71 39 236 422 . 163 334 515 762 1428 1938 1735 Maximum Alert Level 5 | . . . 2 2 1 1 . . . . . 2 . 3 . . . . . . . . . . . 2 3 . 2 2 3 4 5 5 5 Low Security (%) 42 | 100 100 100 19 . 63 59 . . . . . 50 100 69 . . . . 100 . . . . 100 100 32 34 . 77 . 1 . . . . Level 1 18 | . . . 38 73 36 40 . . . . . 39 . 5 . . . . . . . . . . . 61 14 . 4 86 13 . 7 . . Level 2 18 | . . . 42 26 . . . . . . . 10 . 15 . . . . . . . . . . . 5 29 . 17 13 76 55 9 . . Level 3 7 | . . . . . . . . . . . . . . 9 . . . . . . . . . . . . 21 . . . 8 30 27 . . Level 4 4 | . . . . . . . . . . . . . . . . . . . . . . . . . . . . . . . . 13 15 . 57 Level 5 5 | . . . . . . . . . . . . . . . . . . . . . . . . . . . . . . . . . 30 100 . High Security 2 | . . . . . . . . . . . . . . . . . . . . . . . . . . . . . . . . . 9 . 41 Max Security . | . . . . . . . . . . . . . . . . . . . . . . . . . . . . . . . . . . . . Sterilizations 1 | . . . . . . . . . . . . . . . . . . . . . . . . . . . . . . . . . 1 . . Squads Dispatched 126 | . 3 . 8 . 3 3 . 1 . . . 7 . 2 . 1 . . 4 . . . . . . 4 7 . 3 3 5 19 39 2 12 Investigation 15 | . 1 . 4 . 1 2 . . . . . 1 . . . . . . 1 . . . . . . . . . 1 . . 1 2 . 1 Extermination 25 | . . . . . . 1 . . . . . 1 . 1 . . . . 1 . . . . . . 2 3 . 1 1 . 6 6 1 1 Reinforcement 31 | . 2 . 3 . 2 . . . . . . 3 . 1 . . . . 2 . . . . . . 2 1 . 1 2 1 6 5 . . Assault 38 | . . . 1 . . . . 1 . . . 1 . . . 1 . . . . . . . . . . 1 . . . . 3 19 1 10 Garrison 2 | . . . . . . . . . . . . 1 . . . . . . . . . . . . . . . . . . . . 1 . . Intercept 15 | . . . . . . . . . . . . . . . . . . . . . . . . . . . 2 . . . 4 3 6 . . Construction Impeded 6 | . . . . . 1 . . . . . . 1 . . . . . . . . . . . . . . . . 1 . 1 . 2 . . Haulers Reinforced 4 | . . . . . . . . . . . . . . . . . . . . . . . . . . 1 . . . . . 2 1 . . Stealth | -11 -10 -10 -9 -9 -8 -7 -7 -7 -7 -7 -6 -6 -6 -6 -6 -6 -6 -5 -5 -5 -5 -5 -4 -4 -4 -4 -4 -4 -3 -3 -2 -2 -2 -1 -1 --------- Run | Scr Mat Min Mat Min Mat Fac Low Low Zio Dee Pro Fac Was Fac Low Low Dat Pro Fac Upp Upp War Pro Fac Was Fac Arm Lab Res Tes Res Qua Sec Acc Com Distress Signals 32 | . . . 5 1 4 . . . . . . 1 . . . . . . . . . . . 1 . . 4 . 1 . 9 1 3 . 2 Communications Jammed . | . . . . . . . . . . . . . . . . . . . . . . . . . . . . . . . . . . . . Distress Signals . | . . . . . . . . . . . . . . . . . . . . . . . . . . . . . . . . . . . . Times Spotted 870 | . 16 11 52 11 41 1 10 17 . 10 7 20 7 11 11 20 4 3 10 6 1 40 2 7 6 27 59 3 24 5 55 66 211 7 89 Peak Tracking Total 30 | . 3 3 8 3 5 1 7 7 . 6 4 3 3 5 6 10 4 3 4 6 1 12 1 6 3 6 8 2 5 2 9 7 30 5 19 Tactical Retreats 36 | . . 2 5 . 1 . . 3 . . . 1 . . 1 3 . 1 . . . 1 . . . 4 4 . . . 1 2 3 . 4 Traps | -11 -10 -10 -9 -9 -8 -7 -7 -7 -7 -7 -6 -6 -6 -6 -6 -6 -6 -5 -5 -5 -5 -5 -4 -4 -4 -4 -4 -4 -3 -3 -2 -2 -2 -1 -1 ------- Run | Scr Mat Min Mat Min Mat Fac Low Low Zio Dee Pro Fac Was Fac Low Low Dat Pro Fac Upp Upp War Pro Fac Was Fac Arm Lab Res Tes Res Qua Sec Acc Com Traps Triggered 17 | . . . . . 3 . . . . . . 1 . 1 . . . . . . . . . 1 . . 3 . . 1 . . 6 1 . Indirectly 2 | . . . . . 1 . . . . . . . . . . . . . . . . . . . . . . . . . . . 1 . . Trap Hack Attempts . | . . . . . . . . . . . . . . . . . . . . . . . . . . . . . . . . . . . . Triggered . | . . . . . . . . . . . . . . . . . . . . . . . . . . . . . . . . . . . . Disarmed . | . . . . . . . . . . . . . . . . . . . . . . . . . . . . . . . . . . . . Reprogrammed . | . . . . . . . . . . . . . . . . . . . . . . . . . . . . . . . . . . . . Reused . | . . . . . . . . . . . . . . . . . . . . . . . . . . . . . . . . . . . . Traps Extracted . | . . . . . . . . . . . . . . . . . . . . . . . . . . . . . . . . . . . . Installed . | . . . . . . . . . . . . . . . . . . . . . . . . . . . . . . . . . . . . Triggered 17 | . . . . . . . . 4 . . . . . . . 1 . . . . . 12 . . . . . . . . . . . . . Machines | -11 -10 -10 -9 -9 -8 -7 -7 -7 -7 -7 -6 -6 -6 -6 -6 -6 -6 -5 -5 -5 -5 -5 -4 -4 -4 -4 -4 -4 -3 -3 -2 -2 -2 -1 -1 ---------- Run | Scr Mat Min Mat Min Mat Fac Low Low Zio Dee Pro Fac Was Fac Low Low Dat Pro Fac Upp Upp War Pro Fac Was Fac Arm Lab Res Tes Res Qua Sec Acc Com Machines Disabled 67 | . . . 2 1 2 . . . . 3 . 2 . 4 . . . . . . . 2 . 2 . 1 5 3 . 4 3 7 16 1 9 Max in Single Turn 5 | . . . 1 1 1 . . . . 1 . 1 . . . . . . . . . 1 . 1 . 1 1 1 . 1 1 1 1 1 5 Garrison Access 4 | . . . . . . 1 . . . . . 1 . . . . . . . . . . . . . 1 . . . . 1 . . . . Machines Sabotaged . | . . . . . . . . . . . . . . . . . . . . . . . . . . . . . . . . . . . . Garrisons Compromised . | . . . . . . . . . . . . . . . . . . . . . . . . . . . . . . . . . . . . Overloaded Fab Kills . | . . . . . . . . . . . . . . . . . . . . . . . . . . . . . . . . . . . . Fab Network Shutdowns 1 | . . . . . . . . . . . . . . . . . . . . . . . . . . . . . 1 . . . . . . Hacking | -11 -10 -10 -9 -9 -8 -7 -7 -7 -7 -7 -6 -6 -6 -6 -6 -6 -6 -5 -5 -5 -5 -5 -4 -4 -4 -4 -4 -4 -3 -3 -2 -2 -2 -1 -1 --------- Run | Scr Mat Min Mat Min Mat Fac Low Low Zio Dee Pro Fac Was Fac Low Low Dat Pro Fac Upp Upp War Pro Fac Was Fac Arm Lab Res Tes Res Qua Sec Acc Com Machines Accessed 78 | . 5 . 6 . 6 3 1 2 . . 1 2 . 6 1 . 2 . 7 2 . . . . . 2 4 2 3 4 . 8 7 2 2 Terminals 43 | . 4 . 3 . 4 1 1 . . . 1 1 . 4 1 . . . 4 . . . . . . 1 . . 1 2 . 6 6 1 2 Fabricators 8 | . . . . . . . . . . . . . . 1 . . . . . . . . . . . . 3 . 2 1 . . . 1 . Repair Stations 8 | . 1 . 1 . 2 . . . . . . . . 1 . . . . 2 . . . . . . . 1 . . . . . . . . Recycling Units 1 | . . . 1 . . . . . . . . . . . . . . . . . . . . . . . . . . . . . . . . Scanalyzers 6 | . . . 1 . . 1 . . . . . . . . . . . . 1 . . . . . . . . . . 1 . 1 1 . . Garrison Access 4 | . . . . . . 1 . . . . . 1 . . . . . . . . . . . . . 1 . . . . . 1 . . . Total Hacks 242 | . 13 . 14 . 24 9 3 7 . . 1 7 . 16 3 . 16 . 32 2 . . . . . 3 13 21 7 9 . 16 18 4 4 Successful 138 | . 7 . 9 . 15 4 3 7 . . 1 1 . 5 3 . 16 . 10 2 . . . . . 1 8 21 4 5 . 3 10 2 1 Failed 104 | . 6 . 5 . 9 5 . . . . . 6 . 11 . . . . 22 . . . . . . 2 5 . 3 4 . 13 8 2 3 Catastrophic 18 | . 2 . . . . . . . . . . 1 . 3 . . . . 5 . . . . . . 1 . . 1 . . 2 2 . 1 Database Lockouts . | . . . . . . . . . . . . . . . . . . . . . . . . . . . . . . . . . . . . Manual 71 | . 3 . 4 . 7 4 . . . . . 4 . 9 . . . . 9 . . . . . . 2 . . 4 . . 9 14 . 2 Terminals 114 | . 8 . 8 . 15 4 3 . . . 1 4 . 12 3 . . . 15 . . . . . . 2 . . 2 4 . 11 17 1 4 Fabricators 19 | . . . . . . . . . . . . . . 1 . . . . . . . . . . . . 8 . 5 2 . . . 3 . Repair Stations 34 | . 5 . 4 . 9 . . . . . . . . 3 . . . . 8 . . . . . . . 5 . . . . . . . . Recycling Units 1 | . . . 1 . . . . . . . . . . . . . . . . . . . . . . . . . . . . . . . . Scanalyzers 18 | . . . 1 . . 1 . . . . . . . . . . . . 9 . . . . . . . . . . 3 . 3 1 . . Garrison Access 10 | . . . . . . 4 . . . . . 3 . . . . . . . . . . . . . 1 . . . . . 2 . . . Terminal Hacks 77 | . 3 . 3 . 4 . 3 7 . . 1 1 . 1 3 . 16 . . 2 . . . . . . . 21 . 1 . 3 7 1 . Record 36 | . . . . . . . 3 6 . . 1 . . . 3 . . . . . . . . . . . . 21 . 1 . 1 . . . Part Schematic 7 | . . . . . . . . . . . . . . . . . 7 . . . . . . . . . . . . . . . . . . Robot Schematic 6 | . . . . . . . . . . . . . . . . . 6 . . . . . . . . . . . . . . . . . . Prototype ID Bank 6 | . 1 . . . 2 . . . . . . . . . . . 3 . . . . . . . . . . . . . . . . . . Open Door 6 | . . . . . . . . 1 . . . . . . . . . . . 2 . . . . . . . . . . . 1 1 1 . Level Access Points 1 | . . . . . . . . . . . . . . . . . . . . . . . . . . . . . . . . . 1 . . Branch Access Points 1 | . . . . . . . . . . . . . . 1 . . . . . . . . . . . . . . . . . . . . . Alert Level 1 | . . . 1 . . . . . . . . . . . . . . . . . . . . . . . . . . . . . . . . Unreport Threat 6 | . . . . . 1 . . . . . . . . . . . . . . . . . . . . . . . . . . 1 4 . . Locate Traps 5 | . 1 . 1 . 1 . . . . . . 1 . . . . . . . . . . . . . . . . . . . . 1 . . Transport Status 1 | . 1 . . . . . . . . . . . . . . . . . . . . . . . . . . . . . . . . . . Hauler Manifests 1 | . . . 1 . . . . . . . . . . . . . . . . . . . . . . . . . . . . . . . . Fabricator Hacks 9 | . . . . . . . . . . . . . . . . . . . . . . . . . . . 4 . 2 2 . . . 1 . Network Status 1 | . . . . . . . . . . . . . . . . . . . . . . . . . . . . . . . . . . 1 . Load Schematic 5 | . . . . . . . . . . . . . . . . . . . . . . . . . . . 3 . 1 1 . . . . . Build 3 | . . . . . . . . . . . . . . . . . . . . . . . . . . . 1 . 1 1 . . . . . Repair Station Hacks 24 | . 4 . 2 . 8 . . . . . . . . 2 . . . . 4 . . . . . . . 4 . . . . . . . . Scan Component 12 | . 2 . 1 . 4 . . . . . . . . 1 . . . . 2 . . . . . . . 2 . . . . . . . . Repair 12 | . 2 . 1 . 4 . . . . . . . . 1 . . . . 2 . . . . . . . 2 . . . . . . . . Recycling Unit Hacks . | . . . . . . . . . . . . . . . . . . . . . . . . . . . . . . . . . . . . Scanalyzer 6 | . . . . . . . . . . . . . . . . . . . 3 . . . . . . . . . . 2 . . 1 . . Insert Component 5 | . . . . . . . . . . . . . . . . . . . 2 . . . . . . . . . . 2 . . 1 . . Analyze 1 | . . . . . . . . . . . . . . . . . . . 1 . . . . . . . . . . . . . . . . Garrison Access Hacks 1 | . . . . . . . . . . . . . . . . . . . . . . . . . . 1 . . . . . . . . . Seal Access 1 | . . . . . . . . . . . . . . . . . . . . . . . . . . 1 . . . . . . . . . Unauthorized Hacks 21 | . . . 4 . 3 4 . . . . . . . 2 . . . . 3 . . . . . . . . . 2 . . . 2 . 1 Terminals 15 | . . . 2 . 3 2 . . . . . . . 2 . . . . 3 . . . . . . . . . . . . . 2 . 1 Track 1 | . . . . . . 1 . . . . . . . . . . . . . . . . . . . . . . . . . . . . . Botnet 13 | . . . 2 . 3 1 . . . . . . . 2 . . . . 2 . . . . . . . . . . . . . 2 . 1 Disrupt 1 | . . . . . . . . . . . . . . . . . . . 1 . . . . . . . . . . . . . . . . Fabricators 2 | . . . . . . . . . . . . . . . . . . . . . . . . . . . . . 2 . . . . . . Prioritize 1 | . . . . . . . . . . . . . . . . . . . . . . . . . . . . . 1 . . . . . . Siphon 1 | . . . . . . . . . . . . . . . . . . . . . . . . . . . . . 1 . . . . . . Repair Stations . | . . . . . . . . . . . . . . . . . . . . . . . . . . . . . . . . . . . . Recycling Units 1 | . . . 1 . . . . . . . . . . . . . . . . . . . . . . . . . . . . . . . . Tunnel 1 | . . . 1 . . . . . . . . . . . . . . . . . . . . . . . . . . . . . . . . Scanalyzers 2 | . . . 1 . . 1 . . . . . . . . . . . . . . . . . . . . . . . . . . . . . Extract 2 | . . . 1 . . 1 . . . . . . . . . . . . . . . . . . . . . . . . . . . . . Garrison Access 1 | . . . . . . 1 . . . . . . . . . . . . . . . . . . . . . . . . . . . . . Jam 1 | . . . . . . 1 . . . . . . . . . . . . . . . . . . . . . . . . . . . . . Data Cores Recovered 2 | . . . . . . . . . . . . . . . . . . . . . . . . . . . . . . . . 1 1 . . Used . | . . . . . . . . . . . . . . . . . . . . . . . . . . . . . . . . . . . . Hacking Detections 60 | . 4 . 4 . 6 2 1 . . . . 2 . 6 . . . . 6 . . . . . . 1 4 . 3 4 . 7 7 1 2 Full Trace Events 8 | . 1 . 1 . . . 1 . . . . 1 . . . . . . 1 . . . . . . . . . 1 . . 1 . . 1 Feedback Events 1 | . . . . . . . . . . . . . . . . . . . . . . . . . . . . . 1 . . . . . . Corruption 1 | . . . . . . . . . . . . . . . . . . . . . . . . . . . . . 1 . . . . . . Feedback Blocked . | . . . . . . . . . . . . . . . . . . . . . . . . . . . . . . . . . . . . Robot Schematics Acquired 6 | . . . . . . . . . . . . . . . . . 6 . . . . . . . . . . . . . . . . . . Robots Built 2 | . . . . . . . . . . . . . . . . . . . . . . . . . . . . . . 2 . . . . . Matter 318 | . . . . . . . . . . . . . . . . . . . . . . . . . . . . . . 318 . . . . . Time 169 | . . . . . . . . . . . . . . . . . . . . . . . . . . . . . . 169 . . . . . Total Robot Build Rating 12 | . . . . . . . . . . . . . . . . . . . . . . . . . . . . . . 12 . . . . . Part Schematics Acquired 10 | . . . 1 . . 1 . . . . . . . . . . 7 . 1 . . . . . . . . . . . . . . . . Parts Built 2 | . . . . . . . . . . . . . . . . . . . . . . . . . . . 1 . 1 . . . . . . Matter 669 | . . . . . . . . . . . . . . . . . . . . . . . . . . . 285 . 384 . . . . . . Time 280 | . . . . . . . . . . . . . . . . . . . . . . . . . . . 76 . 204 . . . . . . Total Part Build Rating 13 | . . . . . . . . . . . . . . . . . . . . . . . . . . . 5 . 8 . . . . . . Parts Repaired 12 | . 2 . 1 . 4 . . . . . . . . 1 . . . . 2 . . . . . . . 2 . . . . . . . . Time 500 | . 52 . 26 . 122 . . . . . . . . 26 . . . . 148 . . . . . . . 126 . . . . . . . . Parts Recycled . | . . . . . . . . . . . . . . . . . . . . . . . . . . . . . . . . . . . . Recycled Matter . | . . . . . . . . . . . . . . . . . . . . . . . . . . . . . . . . . . . . Retrieved Matter . | . . . . . . . . . . . . . . . . . . . . . . . . . . . . . . . . . . . . Retrieved Components . | . . . . . . . . . . . . . . . . . . . . . . . . . . . . . . . . . . . . Parts Scanalyzed 1 | . . . . . . . . . . . . . . . . . . . 1 . . . . . . . . . . . . . . . . Part Schematics Acquired 1 | . . . . . . . . . . . . . . . . . . . 1 . . . . . . . . . . . . . . . . Parts Damaged . | . . . . . . . . . . . . . . . . . . . . . . . . . . . . . . . . . . . . Bothacking | -11 -10 -10 -9 -9 -8 -7 -7 -7 -7 -7 -6 -6 -6 -6 -6 -6 -6 -5 -5 -5 -5 -5 -4 -4 -4 -4 -4 -4 -3 -3 -2 -2 -2 -1 -1 ------------ Run | Scr Mat Min Mat Min Mat Fac Low Low Zio Dee Pro Fac Was Fac Low Low Dat Pro Fac Upp Upp War Pro Fac Was Fac Arm Lab Res Tes Res Qua Sec Acc Com Used RIF Installer . | . . . . . . . . . . . . . . . . . . . . . . . . . . . . . . . . . . . . Robots Hacked . | . . . . . . . . . . . . . . . . . . . . . . . . . . . . . . . . . . . . Non-combat . | . . . . . . . . . . . . . . . . . . . . . . . . . . . . . . . . . . . . Combat . | . . . . . . . . . . . . . . . . . . . . . . . . . . . . . . . . . . . . Robot Hacks Applied . | . . . . . . . . . . . . . . . . . . . . . . . . . . . . . . . . . . . . Relay Couplers Released 4 | . . . . . . . . . . . . 2 . . . . . . . . . . . . . . . . . . 2 . . . . Machine Destruction 4 | . . . . . . . . . . . . 2 . . . . . . . . . . . . . . . . . . 2 . . . . Robots Rewired 4 | . . . . . . . . 2 . . . . . . . 2 . . . . . . . . . . . . . . . . . . . Allies Hacked . | . . . . . . . . . . . . . . . . . . . . . . . . . . . . . . . . . . . . Hacks Repelled 2 | . . . . . . . . . . . . . . . . . . . . . . 2 . . . . . . . . . . . . . Allies | -11 -10 -10 -9 -9 -8 -7 -7 -7 -7 -7 -6 -6 -6 -6 -6 -6 -6 -5 -5 -5 -5 -5 -4 -4 -4 -4 -4 -4 -3 -3 -2 -2 -2 -1 -1 -------- Run | Scr Mat Min Mat Min Mat Fac Low Low Zio Dee Pro Fac Was Fac Low Low Dat Pro Fac Upp Upp War Pro Fac Was Fac Arm Lab Res Tes Res Qua Sec Acc Com Total Allies 28 | . . 1 . 2 . . . 2 . . . . 19 . . 2 . . . . . . . . . . . . . 2 . . . . . Largest Group 19 | . . 1 1 2 2 . . 2 . . . . 19 19 5 2 2 . . . . . . . . . . . . 2 2 . . . . Highest-Rated Group 696 | . . 31 31 46 46 . . 36 . . . . 696 696 198 61 61 . . . . . . . . . . . . 92 92 . . . . Highest-Rated Ally 50 | . . 31 31 31 31 . . 20 . . . . 50 50 46 33 32 . . . . . . . . . . . . 46 46 . . . . Total Orders 1 | . . . . . . . . . . . . 1 . . . . . . . . . . . . . . . . . . . . . . . RETURN 1 | . . . . . . . . . . . . 1 . . . . . . . . . . . . . . . . . . . . . . . Ally Attacks 134 | . . . 14 . 8 . . 3 . . . . . 67 6 3 5 . . . . . . . . . . . . 5 23 . . . . Total Damage 3878 | . . . 186 . 65 . . 40 . . . . . 2194 156 34 83 . . . . . . . . . . . . 113 1007 . . . . Kills 34 | . . . 4 . 1 . . . . . . . . 22 . 1 . . . . . . . . . . . . . 1 5 . . . . Allies Corrupted 2 | . . . . . . . . . . . . . . 2 . . . . . . . . . . . . . . . . . . . . . Allies Melted . | . . . . . . . . . . . . . . . . . . . . . . . . . . . . . . . . . . . . Intel | -11 -10 -10 -9 -9 -8 -7 -7 -7 -7 -7 -6 -6 -6 -6 -6 -6 -6 -5 -5 -5 -5 -5 -4 -4 -4 -4 -4 -4 -3 -3 -2 -2 -2 -1 -1 ------- Run | Scr Mat Min Mat Min Mat Fac Low Low Zio Dee Pro Fac Was Fac Low Low Dat Pro Fac Upp Upp War Pro Fac Was Fac Arm Lab Res Tes Res Qua Sec Acc Com Robot Analysis Total 115 | . . . . . . . . . . . . . . . . . 115 . . . . . . . . . . . . . . . . . . Derelict Logs Recovered 12 | . . 1 . 1 . . 1 . 1 . 1 . . . 2 2 . 1 . 1 1 . . . . . . . . . . . . . . Drone Launches 1 | . . . . . . . . . . . . 1 . . . . . . . . . . . . . . . . . . . . . . . Drone Recoveries 1 | . . . . . . . . . . . . 1 . . . . . . . . . . . . . . . . . . . . . . . Exploration | -11 -10 -10 -9 -9 -8 -7 -7 -7 -7 -7 -6 -6 -6 -6 -6 -6 -6 -5 -5 -5 -5 -5 -4 -4 -4 -4 -4 -4 -3 -3 -2 -2 -2 -1 -1 ------------- Run | Scr Mat Min Mat Min Mat Fac Low Low Zio Dee Pro Fac Was Fac Low Low Dat Pro Fac Upp Upp War Pro Fac Was Fac Arm Lab Res Tes Res Qua Sec Acc Com Turns Passed 40925 | 110 943 842 1368 735 2030 819 1051 1373 3412 1851 1396 1053 1326 888 1225 1483 918 589 967 994 495 756 761 332 717 876 1564 1098 981 596 1687 1852 2640 471 726 Spaces Moved 17311 | 57 458 422 555 321 857 425 546 655 1982 761 717 426 492 445 599 595 143 268 376 416 225 304 405 111 221 211 436 311 375 272 796 697 949 220 262 Core 571 | 4 . . . . . . . . 542 . . . . . . . . . . . . . . . . . . . . . . . . . 25 Treads 13852 | 53 458 422 555 321 857 425 546 655 1440 528 . . 474 445 599 595 59 . . . . 179 405 111 221 211 436 311 375 272 796 697 949 220 237 Legs 2888 | . . . . . . . . . . 233 717 426 18 . . . 84 268 376 416 225 125 . . . . . . . . . . . . . Wheels . | . . . . . . . . . . . . . . . . . . . . . . . . . . . . . . . . . . . . Hover . | . . . . . . . . . . . . . . . . . . . . . . . . . . . . . . . . . . . . Flight . | . . . . . . . . . . . . . . . . . . . . . . . . . . . . . . . . . . . . Fastest Speed 50 | 50 160 180 180 180 160 180 180 180 100 169 169 169 160 180 180 180 180 190 190 190 190 180 180 180 180 180 165 145 165 165 165 165 165 177 50 Average Speed 175 | 152 163 180 180 180 180 180 180 184 159 185 169 170 179 180 180 180 201 190 190 190 207 194 180 180 180 180 175 160 165 165 165 165 170 177 165 Slowest Speed 270 | 160 180 180 180 180 183 180 180 210 186 240 169 202 200 180 180 180 270 210 210 190 210 210 180 180 180 180 180 165 165 185 165 165 192 177 177 Overloaded Moves . | . . . . . . . . . . . . . . . . . . . . . . . . . . . . . . . . . . . . Propulsion Burnouts . | . . . . . . . . . . . . . . . . . . . . . . . . . . . . . . . . . . . . Robots Hopped . | . . . . . . . . . . . . . . . . . . . . . . . . . . . . . . . . . . . . Cave-ins Triggered 2 | . . . . . . . . . 1 . . . . . . . . . . 1 . . . . . . . . . . . . . . . Teleports 1 | . . . . . . . . . . . . . . . . . . . . . . . . . . . . . . . . . 1 . . Exploration Rate (%) 49 | 5 52 82 47 72 64 14 67 63 85 77 81 13 95 17 71 77 77 52 13 58 41 38 61 4 92 8 40 97 13 45 21 69 53 8 19 Regions Visited 35 Branch Regions 21 Pre-discovered Areas 34 | . . 1 1 1 . . 2 . 3 . 1 . . . . . 25 . . . . . . . . . . . . . . . . . . Known Exits Taken 20 | . . 1 . . . 1 1 1 1 . 1 . . 1 . . . . 1 1 1 1 1 . . 1 1 1 1 1 1 1 1 . . Unknown Exits Taken 11 | 1 1 . 1 1 1 . . . . 1 . . . . 1 1 1 1 . . . . . . . . . . . . . . . 1 . Scrap Searched 32 | . . 1 . 3 . . 5 3 4 . 5 . . . 2 2 . 2 . 2 1 . 2 . . . . . . . . . . . . Spaces Dug 301 | . 4 2 3 . . 3 2 2 13 6 40 4 7 6 11 . . . 25 23 4 4 17 11 2 10 21 . 20 15 5 14 2 17 8 Terrain Destroyed 1535 | . 4 9 5 28 30 3 4 2 13 74 81 16 10 6 24 25 18 33 29 38 6 20 30 17 10 30 98 1 36 17 22 23 48 17 708 Melee 28 | . 4 2 3 . . 3 . . 13 . . . . . . . . . . . . . . . . . . . . . . 1 2 . . Projectile 425 | . . . . . . . 2 2 . 11 46 16 10 6 24 6 4 1 29 26 6 6 18 12 4 21 51 1 36 17 22 18 1 6 23 AOE 1082 | . . 7 2 28 30 . 2 . . 63 35 . . . . 19 14 32 . 12 . 14 12 5 6 9 47 . . . . 4 45 11 685 Terrain Rammed . | . . . . . . . . . . . . . . . . . . . . . . . . . . . . . . . . . . . . Walls Destroyed . | . . . . . . . . . . . . . . . . . . . . . . . . . . . . . . . . . . . . Machines Disabled . | . . . . . . . . . . . . . . . . . . . . . . . . . . . . . . . . . . . . Actions | -11 -10 -10 -9 -9 -8 -7 -7 -7 -7 -7 -6 -6 -6 -6 -6 -6 -6 -5 -5 -5 -5 -5 -4 -4 -4 -4 -4 -4 -3 -3 -2 -2 -2 -1 -1 --------- Run | Scr Mat Min Mat Min Mat Fac Low Low Zio Dee Pro Fac Was Fac Low Low Dat Pro Fac Upp Upp War Pro Fac Was Fac Arm Lab Res Tes Res Qua Sec Acc Com Total 25695 | 73 594 467 775 447 1212 479 592 777 2118 1118 841 678 856 522 688 954 746 328 587 590 242 429 417 227 502 630 1032 870 630 370 1051 1338 1784 294 437 Wait 4892 | 4 62 22 65 99 147 2 21 36 . 232 66 185 287 43 48 230 577 42 154 151 7 68 1 95 234 340 381 429 161 42 110 286 237 12 16 Move 17276 | 56 457 421 554 320 856 424 545 654 1981 760 716 426 491 444 598 594 142 267 375 414 224 303 404 111 220 210 435 310 374 271 795 696 948 219 261 Hop . | . . . . . . . . . . . . . . . . . . . . . . . . . . . . . . . . . . . . Pick Up 281 | 4 16 2 19 3 30 11 1 4 27 11 1 4 8 14 1 4 2 1 10 1 . 6 . 1 1 1 17 33 1 2 2 13 19 5 6 Fast Attach 178 | 7 3 . 3 . 13 8 . 6 15 13 . 1 5 3 3 1 . . . . 1 2 . . 3 . 7 11 5 4 15 8 34 4 3 Attach 165 | . . . 6 . 2 1 . 2 . 6 1 2 2 1 1 9 1 2 2 1 . 1 . 2 3 9 3 5 1 1 1 14 60 4 22 Detach 162 | . . . . . 2 2 . 2 . 3 1 7 7 2 1 7 7 3 1 . . 2 . . 5 7 7 11 2 3 14 8 50 4 4 Swap 338 | . 13 4 17 5 30 7 10 11 1 12 1 8 . . 5 11 3 4 5 6 5 6 1 4 6 21 37 2 16 3 14 22 39 4 5 Drop 307 | . 11 . 23 2 30 17 1 5 19 21 1 4 12 5 2 2 . . 6 . . 7 . . 7 2 17 22 7 5 15 20 32 4 8 Fire 1831 | 2 25 16 72 15 92 3 14 29 . 46 54 41 44 10 29 28 14 9 33 16 5 34 11 14 23 40 126 47 63 37 84 264 344 38 109 Melee 132 | . 5 2 9 . . 3 . 3 75 12 . . . . . . . . . . . . . . . . . . . . . 4 19 . . Ram . | . . . . . . . . . . . . . . . . . . . . . . . . . . . . . . . . . . . . Kick . | . . . . . . . . . . . . . . . . . . . . . . . . . . . . . . . . . . . . Crush 41 | . 2 . 7 3 10 1 . . . 2 . . . . . 4 . . . . . . . . . . 2 . . 2 1 2 2 . 3 Escape Stasis 1 | . . . . . . . . . . . . . . . . . . . . 1 . . . . . . . . . . . . . . . Rewire 91 | . . . . . . . . 25 . . . . . . . 64 . . 1 . . . . . . . . . . . . 1 . . . Trap . | . . . . . . . . . . . . . . . . . . . . . . . . . . . . . . . . . . . . Miscellaneous . | . . . . . . . . . . . . . . . . . . . . . . . . . . . . . . . . . . . . Route ------- -11/Scrapyard -10/Materials (discovered 2 exits: *Mat / [*Min]) -10/Mines -9/Materials (discovered 3 exits: *Mat / [*Min] / [*Sto]) -9/Mines -8/Materials (discovered 3 exits: *Fac x3) -7/Factory -7/Lower Caves -7/Lower Caves (discovered 2 exits: *Fac / *Zio) -7/Zion (discovered 2 exits: *Dee / *Pro) -7/Deep Caves -6/Proximity Caves -6/Factory -6/Waste -6/Factory (discovered 3 exits: *Fac / *Low x2) -6/Lower Caves -6/Lower Caves -6/Data Miner -5/Proximity Caves -5/Factory (discovered 2 exits: Fac / *Upp) -5/Upper Caves -5/Upper Caves (discovered 2 exits: Fac / *War) -5/Warlord -4/Proximity Caves -4/Factory -4/Waste -4/Factory -4/Armory -4/Lab -3/Research (discovered 2 exits: *Res / *Tes) -3/Testing -2/Research (discovered 2 exits: *Acc / *Qua) -2/Quarantine -2/Section 7 -1/Access -1/Command To Epsilon Eridani History --------- Turn | Location | Event 54 | -11/Scrapyard | Discovered new exit (range 15) 111 | -11/Scrapyard | Entered Materials 302 | -10/Materials | Build established: Mutant 325 | -10/Materials | Discovered new exit (range 15) 416 | -10/Materials | Repaired EM Pulse Gun? 455 | -10/Materials | Repaired Lgt. Treads 584 | -10/Materials | Discovered new exit (range 12) 1054 | -10/Materials | Entered Mines 1469 | -10/Mines | Identified exit to Materials 1501 | -10/Mines | Received a Rocket Launcher from a helpful Derelict 1679 | -10/Mines | Escorted by a lone wolf Derelict 1699 | -10/Mines | Learned location of Storage (-9) 1896 | -10/Mines | Entered Materials 1896 | -9/Materials | Accompanied by 1 ally 1896 | -9/Materials | Evolved 2 slots: Utility x2 2134 | -9/Materials | Repaired Lgt. Treads 2297 | -9/Materials | Discovered new exit (range 15) 2504 | -9/Materials | Discovered new exit (range 13) 2744 | -9/Materials | Discovered new exit (range 15) 3096 | -9/Materials | First assault squad dispatched 3264 | -9/Materials | Entered Mines 3276 | -9/Mines | Met a Derelict bent on vengeance 3336 | -9/Mines | Discovered new exit (range 12) 3631 | -9/Mines | Learned location of Zion (-7) 3648 | -9/Mines | Assembled infested the area 3653 | -9/Mines | Assisted by a Guerilla fighting off Assembled 3663 | -9/Mines | A weapon hastily lodged in a ceiling crevice suddenly fell to the ground 3999 | -9/Mines | Entered Materials 3999 | -8/Materials | Accompanied by 2 allies 3999 | -8/Materials | Evolved 2 slots: Propulsion x1, Utility x1 4004 | -8/Materials | Led the pair of lost Derelicts to an unsafe place 4244 | -8/Materials | Repaired Hrd. Light Armor Plating 4277 | -8/Materials | Repaired Hvy. EM Pulse Gun 4876 | -8/Materials | Discovered new exit (range 16) 4936 | -8/Materials | Build established: Hauler-Mutant 5113 | -8/Materials | Discovered new exit (range 15) 5333 | -8/Materials | Repaired Hcp. Storage Unit 5425 | -8/Materials | Repaired Hrd. Light Armor Plating 5700 | -8/Materials | Discovered new exit (range 16) 6029 | -8/Materials | Entered Factory 6029 | -7/Factory | Evolved 2 slots: Utility x2 6353 | -7/Factory | Build established: Scavenger-Mutant 6604 | -7/Factory | Discovered new exit (range 6) 6670 | -7/Factory | Identified exit to Lower Caves 6676 | -7/Factory | Build established: Hauler-Mutant 6848 | -7/Factory | Entered Lower Caves 7313 | -7/Lower Caves | Encountered a Warlord checkpoint 7359 | -7/Lower Caves | Attracted the attention of an 0b10 base 7705 | -7/Lower Caves | Discovered new exit (range 7) 7715 | -7/Lower Caves | Identified exit to Lower Caves 7742 | -7/Lower Caves | Build established: Hauler-Skirmisher 7899 | -7/Lower Caves | Entered another Lower Caves area 8039 | -7/Lower Caves | Learned location of 1 exit from Research 8039 | -7/Lower Caves | Learned Extension security intel 8039 | -7/Lower Caves | Learned Armory garrison access intel 8162 | -7/Lower Caves | Discovered new exit (range 8) 8226 | -7/Lower Caves | Identified exit to Factory 8313 | -7/Lower Caves | Build established: Hauler-Mutant 8401 | -7/Lower Caves | Attracted the attention of an 0b10 outpost 9207 | -7/Lower Caves | Discovered new exit (range 10) 9223 | -7/Lower Caves | Identified exit to Zion 9272 | -7/Lower Caves | Entered Zion 9273 | -7/Zion | Identified exit to Proximity Caves 9533 | -7/Zion | System corruption cleaned by Quarantine Array 10046 | -7/Zion | Learned location of Warlord (-5) 10119 | -7/Zion | Given the Hacking Drone Bay 10119 | -7/Zion | Found Prototype Device 10145 | -7/Zion | Found Prototype Device 10145 | -7/Zion | Identified Phasing AFG 10487 | -7/Zion | Learned Factory non-interactive machine intel 11388 | -7/Zion | Build established: Mutant 12113 | -7/Zion | Crushed by falling debris 12283 | -7/Zion | Discovered new exit (range 3) 12283 | -7/Zion | Saw the warning signs outside the Deep Caves entrance 12682 | -7/Zion | Identified exit to Deep Caves 12684 | -7/Zion | Entered Deep Caves 12687 | -7/Deep Caves | Build established: Hauler-Mutant 12923 | -7/Deep Caves | Found Surveybot 24 Chip 13029 | -7/Deep Caves | Attacked by Z-Imprinter 13085 | -7/Deep Caves | Lost 3 parts (1n2u) 13096 | -7/Deep Caves | Destroyed Z-Imprinter 13115 | -7/Deep Caves | Found Prototype Protection 13115 | -7/Deep Caves | Identified Zio. Weapon Casing 13155 | -7/Deep Caves | Z-Facility disabled 13581 | -7/Deep Caves | Spotted as-35636 13608 | -7/Deep Caves | Core integrity fell below 50% 13612 | -7/Deep Caves | Destroyed as-35636 13617 | -7/Deep Caves | Found GOLEM Unit 13642 | -7/Deep Caves | Lost 6 parts (1p2n2u1w) 13681 | -7/Deep Caves | Exposed GOLEM chamber 13686 | -7/Deep Caves | Found GOLEM Unit 13691 | -7/Deep Caves | Found GOLEM Unit 13697 | -7/Deep Caves | Found GOLEM Unit 13987 | -7/Deep Caves | Build established: Hauler-Golem 14002 | -7/Deep Caves | Found Zio. Weapon Casing 14052 | -7/Deep Caves | Lost 3 parts (2n1w) 14172 | -7/Deep Caves | Found Zio. Weapon Casing 14279 | -7/Deep Caves | Found Prototype Protection 14523 | -7/Deep Caves | Discovered new exit (range 7) 14535 | -7/Deep Caves | Entered Proximity Caves 15168 | -6/Proximity Caves | Spotted B-75 Beast 15923 | -6/Proximity Caves | Discovered exit to Factory (range 5) 15931 | -6/Proximity Caves | Entered Factory 15931 | -6/Factory | Evolved 2 slots: Power x1, Utility x1 15932 | -6/Factory | Loaded intel: 210 non-interactive machine locations 16141 | -6/Factory | Found Prototype Processor 16141 | -6/Factory | Identified Exp. Targeting Computer 16414 | -6/Factory | Garrison activated, responded to threat 16928 | -6/Factory | Identified Hacking Drone Bay 16984 | -6/Factory | Sucked down chute 16984 | -6/Factory | Entered Waste 17011 | -6/Waste | Spotted C-40 Crusher 17030 | -6/Waste | Destroyed C-40 Crusher 17059 | -6/Waste | Spotted C-40 Crusher 17109 | -6/Waste | Spotted C-40 Crusher 17117 | -6/Waste | Spotted C-40 Crusher 17156 | -6/Waste | Destroyed C-40 Crusher 17196 | -6/Waste | Destroyed C-40 Crusher 17217 | -6/Waste | Destroyed C-40 Crusher 17265 | -6/Waste | Found Prototype Device 17265 | -6/Waste | Identified Exp. ECM Suite 17304 | -6/Waste | Spotted C-40 Crusher 17345 | -6/Waste | Destroyed C-40 Crusher 17347 | -6/Waste | Build established: Hauler-Mutant 17380 | -6/Waste | Spotted C-40 Crusher 17465 | -6/Waste | Destroyed C-40 Crusher 17597 | -6/Waste | Discovered new exit (range 13) 17896 | -6/Waste | Warlord forces began an assault 17968 | -6/Waste | Identified Zio. Heavy Carapace 18247 | -6/Waste | Build established: Hauler-Golem 18310 | -6/Waste | Entered Factory 18310 | -6/Factory | Accompanied by 19 allies 18547 | -6/Factory | Repaired Hcp. Storage Unit 18845 | -6/Factory | Build established: Hauler-Mutant 19004 | -6/Factory | Identified exit to Lower Caves 19080 | -6/Factory | Discovered new exit (range 15) 19198 | -6/Factory | Entered Lower Caves 19198 | -6/Lower Caves | Accompanied by 5 allies 19596 | -6/Lower Caves | Found Alien Artifact 19596 | -6/Lower Caves | Identified Core Expander 19596 | -6/Lower Caves | Installed Core Expander, added new Weapon slot 20064 | -6/Lower Caves | Encountered a Warlord checkpoint 20314 | -6/Lower Caves | Learned Factory trap positions 20323 | -6/Lower Caves | Discovered new exit (range 14) 20357 | -6/Lower Caves | Learned 4 Factory zone layouts 20386 | -6/Lower Caves | Build established: Hauler-Gunner 20423 | -6/Lower Caves | Entered another Lower Caves area 20423 | -6/Lower Caves | Accompanied by 1 ally 20446 | -6/Lower Caves | Attracted the attention of an 0b10 checkpoint 20482 | -6/Lower Caves | Attracted the attention of an 0b10 outpost 20486 | -6/Lower Caves | Encountered a Warlord checkpoint 20594 | -6/Lower Caves | Lost 8 parts (1p2n2u3w) 21017 | -6/Lower Caves | Build established: Hauler-Golem 21364 | -6/Lower Caves | Learned 4 Factory zone layouts 21450 | -6/Lower Caves | Discovered new exit (range 15) 21603 | -6/Lower Caves | Learned Factory terminal intel 21906 | -6/Lower Caves | Entered Data Miner 21906 | -6/Data Miner | Accompanied by 2 allies 21909 | -6/Data Miner | Discovered new exit (range 6) 21943 | -6/Data Miner | Met Data Miner 22006 | -6/Data Miner | Received God Mode back door access code from Data Miner 22409 | -6/Data Miner | Destroyed Data Miner 22413 | -6/Data Miner | Found Prototype Hackware 22416 | -6/Data Miner | Found Prototype Hackware 22417 | -6/Data Miner | Interfaced with the Data Conduit 22824 | -6/Data Miner | Entered Proximity Caves 23406 | -5/Proximity Caves | Discovered new exit (range 4) 23413 | -5/Proximity Caves | Entered Factory 23413 | -5/Factory | Evolved 2 slots: Utility x2 23414 | -5/Factory | Identified exit to Factory 23415 | -5/Factory | Loaded intel: 129 trap records 23416 | -5/Factory | Loaded intel: 319 machine locations 23417 | -5/Factory | Loaded intel: 20 terminal locations 23417 | -5/Factory | Identified Quantum Router 23973 | -5/Factory | Repaired Broken Hvy. Treads 24044 | -5/Factory | Repaired Prc. Grenade Launcher 24068 | -5/Factory | Build established: Hauler-Mutant 24308 | -5/Factory | Discovered new exit (range 15) 24362 | -5/Factory | Identified exit to Upper Caves 24380 | -5/Factory | Entered Upper Caves 24382 | -5/Upper Caves | Attracted the attention of an 0b10 checkpoint 24667 | -5/Upper Caves | Build established: Hauler-Skirmisher 24749 | -5/Upper Caves | Spotted B-75 Beast 24780 | -5/Upper Caves | Encountered a Warlord checkpoint 25078 | -5/Upper Caves | Crushed by falling debris 25127 | -5/Upper Caves | Identified exit to Upper Caves 25370 | -5/Upper Caves | Build established: Hauler-Mutant 25374 | -5/Upper Caves | Entered another Upper Caves area 25745 | -5/Upper Caves | Build established: Hauler-Skirmisher 25846 | -5/Upper Caves | Discovered new exit (range 5) 25867 | -5/Upper Caves | Identified exit to Warlord 25869 | -5/Upper Caves | Entered Warlord 25939 | -5/Warlord | System corruption cleaned by Quarantine Array 26073 | -5/Warlord | Met Warlord 26082 | -5/Warlord | Warlord's base attacked by MAIN.C 26138 | -5/Warlord | Found Vortex Chain Reactor 26150 | -5/Warlord | Found Exp. Armor Integrity Analyzer 26153 | -5/Warlord | Found System Purifier 26432 | -5/Warlord | Warlord forces counterattacked 26451 | -5/Warlord | Spotted Striker 26527 | -5/Warlord | Spotted Striker 26587 | -5/Warlord | Build established: Hauler-Mutant 26590 | -5/Warlord | Spotted Striker 26612 | -5/Warlord | Discovered new exit (range 8) 26623 | -5/Warlord | Identified exit to Proximity Caves 26625 | -5/Warlord | Entered Proximity Caves 26871 | -4/Proximity Caves | Spotted B-86 Titan 26937 | -4/Proximity Caves | Build established: Hauler-Skirmisher 27363 | -4/Proximity Caves | Discovered exit to Factory (range 13) 27386 | -4/Proximity Caves | Attracted the attention of an 0b10 checkpoint 27386 | -4/Proximity Caves | Entered Factory 27386 | -4/Factory | Evolved 2 slots: Propulsion x1, Utility x1 27387 | -4/Factory | Identified exit to Armory 27387 | -4/Factory | Identified Deep Network Scanner 27388 | -4/Factory | Loaded intel: 291 machine locations 27718 | -4/Factory | Sucked down chute 27718 | -4/Factory | Entered Waste 27733 | -4/Waste | EMP discharged 27768 | -4/Waste | Destroyed C-40 Crusher 27771 | -4/Waste | Spotted C-40 Crusher 27771 | -4/Waste | Spotted C-40 Crusher 27773 | -4/Waste | Spotted C-40 Crusher 27773 | -4/Waste | Spotted C-40 Crusher 27778 | -4/Waste | Destroyed C-40 Crusher 27792 | -4/Waste | Destroyed C-40 Crusher 27809 | -4/Waste | Spotted C-40 Crusher 27833 | -4/Waste | EMP discharged 27833 | -4/Waste | System corruption reached 10% 27850 | -4/Waste | Destroyed C-40 Crusher 27871 | -4/Waste | Destroyed C-40 Crusher 27901 | -4/Waste | Destroyed C-40 Crusher 27917 | -4/Waste | Found Damper Plating 27933 | -4/Waste | EMP discharged 27944 | -4/Waste | Build established: Hacker-Mutant 28033 | -4/Waste | EMP discharged 28065 | -4/Waste | Discovered new exit (range 10) 28133 | -4/Waste | EMP discharged 28233 | -4/Waste | EMP discharged 28333 | -4/Waste | EMP discharged 28433 | -4/Waste | EMP discharged 28433 | -4/Waste | Identified exit to Factory 28435 | -4/Waste | Entered Factory 28436 | -4/Factory | Loaded intel: 272 machine locations 28681 | -4/Factory | Spotted B-86 Titan 29263 | -4/Factory | Discovered exit to Armory (range 11) 29311 | -4/Factory | Entered Armory 29312 | -4/Armory | Loaded intel: 78 machine locations 29744 | -4/Armory | Repaired Hvy. Treads 29818 | -4/Armory | Repaired Prc. Grenade Launcher 30020 | -4/Armory | Destroyed 8 combat bots 30124 | -4/Armory | Found Gamma Bomb Array 30126 | -4/Armory | Found Gamma Bomb Array 30563 | -4/Armory | Destroyed 7 combat bots 30566 | -4/Armory | Build established: Hauler-Mutant 30631 | -4/Armory | Fabricated Lgt. Regenerative Plating (x1) 30760 | -4/Armory | Intercept squad dispatched 30776 | -4/Armory | Spotted Tracker 30779 | -4/Armory | Destroyed Tracker 30811 | -4/Armory | First assault squad dispatched 30819 | -4/Armory | Spotted Combat Programmer 30833 | -4/Armory | Destroyed Combat Programmer 30857 | -4/Armory | Discovered new exit (range 11) 30874 | -4/Armory | Identified exit to Lab 30875 | -4/Armory | Entered Lab 30875 | -4/Lab | Discovered new exit (range 9) 30895 | -4/Lab | Identified exit to Research 30901 | -4/Lab | Hidden lab's door opened automatically 30901 | -4/Lab | Sensor layout match revealed 30902 | -4/Lab | Gained access to the hidden lab's interior 30910 | -4/Lab | Detected by scanners 30916 | -4/Lab | Confronted by A5 30986 | -4/Lab | Destroyed A5 31195 | -4/Lab | Decrypted terminal 31195 | -4/Lab | Acquired modification code for an L2 power cell 31195 | -4/Lab | Decrypted terminal 31218 | -4/Lab | Found Prototype Energy Cannon 31218 | -4/Lab | Identified Potential Cannon 31235 | -4/Lab | Found Prototype Device 31235 | -4/Lab | Identified AEGIS Remote Shield 31425 | -4/Lab | Found Core Expander 31425 | -4/Lab | Installed Core Expander, added new Power slot 31435 | -4/Lab | Found Alien Artifact 31435 | -4/Lab | Identified Integrated Reactor 31435 | -4/Lab | Installed Integrated Reactor, increased core energy generation (+10) 31604 | -4/Lab | Found Deep Network Scanner 31663 | -4/Lab | Decrypted terminal 31841 | -4/Lab | Disabled Active System Cloaker 31847 | -4/Lab | MAIN.C forces arrive to investigate 31920 | -4/Lab | Found Alien Artifact 31949 | -4/Lab | Found Alien Artifact 31973 | -4/Lab | Entered Research 31973 | -3/Research | Evolved 2 slots: Utility x2 31974 | -3/Research | Identified exit to Research 31975 | -3/Research | Loaded intel: 126 machine locations 32204 | -3/Research | Fabricated Exp. Transmission Jammer (x1) 32776 | -3/Research | Found Adv. Micro-nuke Launcher 32778 | -3/Research | Local fabrication network quarantined 32786 | -3/Research | Discovered new exit (range 12) 32810 | -3/Research | Identified exit to Testing 32954 | -3/Research | Entered Testing 32955 | -3/Testing | Loaded intel: 60 machine locations 32968 | -3/Testing | Identified Core Reset Matrix 32970 | -3/Testing | Identified Transdimensional Reconstructor 33012 | -3/Testing | Found Prototype Ballistic Cannon 33012 | -3/Testing | Identified Perforator 33303 | -3/Testing | Build established: Generator-Mutant 33352 | -3/Testing | Discovered exit to Research (range 13) 33534 | -3/Testing | Fabricated X-72 Disruptor (x2) 33550 | -3/Testing | Entered Research 33550 | -2/Research | Accompanied by 2 allies 33550 | -2/Research | Warlord forces began assault on 0b10 33550 | -2/Research | Evolved 2 slots: Utility x1, Weapon x1 33551 | -2/Research | Loaded intel: 83 machine locations 33660 | -2/Research | Research machine network offline 33813 | -2/Research | Spotted Executioner 33815 | -2/Research | Spotted Executioner 33832 | -2/Research | Met up with Warlord 33840 | -2/Research | Spotted Striker 33842 | -2/Research | Spotted Striker 33848 | -2/Research | Spotted Striker 33848 | -2/Research | Allies destroyed Executioner 33851 | -2/Research | Destroyed Striker 33856 | -2/Research | Destroyed Striker 33986 | -2/Research | Spotted Striker 33992 | -2/Research | Spotted Striker 34002 | -2/Research | Destroyed Striker 34051 | -2/Research | Borebot progress halted 34097 | -2/Research | Found Prototype Processor 34097 | -2/Research | Identified Exp. Core Analyzer 34140 | -2/Research | Borebot progress halted 34232 | -2/Research | Spotted B-90 Cyclops 34279 | -2/Research | Found Quantum Capacitor 34411 | -2/Research | Spotted Executioner 34413 | -2/Research | Destroyed Executioner 34551 | -2/Research | Warlord invited to help at Command 34557 | -2/Research | Spotted Executioner 34557 | -2/Research | Spotted Striker 34560 | -2/Research | Destroyed Striker 34735 | -2/Research | Spotted Tracker 34745 | -2/Research | Spotted Striker 34746 | -2/Research | Destroyed Tracker 34748 | -2/Research | Spotted Tracker 34759 | -2/Research | Destroyed Striker 34803 | -2/Research | Destroyed Tracker 34824 | -2/Research | Destroyed 8 combat bots 34827 | -2/Research | Spotted Combat Programmer 34829 | -2/Research | Spotted Combat Programmer 34831 | -2/Research | Destroyed Combat Programmer 34931 | -2/Research | Discovered new exit (range 16) 35032 | -2/Research | Spotted Striker 35043 | -2/Research | Destroyed Striker 35066 | -2/Research | Found Adv. Kinecellerator 35122 | -2/Research | Build established: Generator-Gunner 35220 | -2/Research | Discovered new exit (range 10) 35236 | -2/Research | Identified exit to Quarantine 35237 | -2/Research | Entered Quarantine 35238 | -2/Quarantine | Loaded intel: 60 machine locations 35368 | -2/Quarantine | Found Alien Artifact 35388 | -2/Quarantine | Identified Subatomic Replicator 35720 | -2/Quarantine | Met incapacitated Sigix Warrior 35720 | -2/Quarantine | Lockdown squad dispatched 35764 | -2/Quarantine | Found Alien Slashing Weapon 35817 | -2/Quarantine | Spotted Lightning 35817 | -2/Quarantine | Spotted Lightning 35821 | -2/Quarantine | Spotted Lightning 35838 | -2/Quarantine | Destroyed Lightning 35845 | -2/Quarantine | Destroyed Lightning 35853 | -2/Quarantine | Destroyed Lightning 35867 | -2/Quarantine | Found Prototype Energy Cannon 35867 | -2/Quarantine | Identified EMDS 35873 | -2/Quarantine | Found EMDS 35878 | -2/Quarantine | Found Prototype Device 35878 | -2/Quarantine | Identified EM Dispersion Field 36027 | -2/Quarantine | First assault squad dispatched 36105 | -2/Quarantine | Destroyed 10 combat bots 36174 | -2/Quarantine | Build established: Generator-Mutant 36219 | -2/Quarantine | Spotted Alpha 7 36228 | -2/Quarantine | Destroyed Alpha 7 36257 | -2/Quarantine | Identified Sigix Broadsword 36281 | -2/Quarantine | Found Alien Launcher 36281 | -2/Quarantine | Identified Sigix Terminator 36384 | -2/Quarantine | Destroyed 7 combat bots 36660 | -2/Quarantine | Spotted Fortress 36796 | -2/Quarantine | Scanned by Researcher 36805 | -2/Quarantine | Destroyed Fortress 36857 | -2/Quarantine | Intercept squad dispatched 36872 | -2/Quarantine | Spotted Tracker 36872 | -2/Quarantine | Spotted Tracker 36876 | -2/Quarantine | Destroyed Tracker 36894 | -2/Quarantine | Destroyed Tracker 36922 | -2/Quarantine | Spotted Combat Programmer 36926 | -2/Quarantine | Spotted Combat Programmer 36935 | -2/Quarantine | Destroyed Combat Programmer 36956 | -2/Quarantine | Destroyed Combat Programmer 37065 | -2/Quarantine | Discovered new exit (range 6) 37072 | -2/Quarantine | Identified exit to Section 7 37089 | -2/Quarantine | Entered Section 7 37090 | -2/Section 7 | Loaded intel: 144 machine locations 37548 | -2/Section 7 | Destroyed 10 combat bots 37589 | -2/Section 7 | First assault squad dispatched 37600 | -2/Section 7 | Spotted S7 Guard 37609 | -2/Section 7 | Destroyed S7 Guard 37614 | -2/Section 7 | Found Prototype Protection 37614 | -2/Section 7 | Identified Hvy. Regenerative Plating 37618 | -2/Section 7 | Found Alien Artifact 37618 | -2/Section 7 | Identified Core Regenerator 37618 | -2/Section 7 | Used Core Regenerator, restored core integrity (+101) 37723 | -2/Section 7 | Destroyed 9 combat bots 37763 | -2/Section 7 | Identified exit to Access 37783 | -2/Section 7 | Intercept squad dispatched 37791 | -2/Section 7 | Spotted Tracker 37792 | -2/Section 7 | Spotted Tracker 37825 | -2/Section 7 | Destroyed Tracker 37825 | -2/Section 7 | Spotted Combat Programmer 37834 | -2/Section 7 | Spotted Combat Programmer 37837 | -2/Section 7 | Destroyed Tracker 37844 | -2/Section 7 | Destroyed Combat Programmer 37854 | -2/Section 7 | Found Exp. Phase Shifter 37856 | -2/Section 7 | Destroyed Combat Programmer 37873 | -2/Section 7 | Found Exp. Targeting Computer 37918 | -2/Section 7 | Found Alien Artifact 38005 | -2/Section 7 | Found Hvy. Reactive Plating 38098 | -2/Section 7 | Identified Integrated Dissipator 38098 | -2/Section 7 | Installed Integrated Dissipator, increased core heat dissipation (+20) 38231 | -2/Section 7 | Lost 3 parts (1n2w) 38236 | -2/Section 7 | Destroyed 8 combat bots 38473 | -2/Section 7 | Destroyed 7 combat bots 38528 | -2/Section 7 | Spotted Alpha 7 38544 | -2/Section 7 | Destroyed Alpha 7 38556 | -2/Section 7 | Found Exp. Targeting Computer 38561 | -2/Section 7 | Found Antimissile System 38592 | -2/Section 7 | Found Alien Artifact 38592 | -2/Section 7 | Identified Integrity Redistributor 38592 | -2/Section 7 | Used Integrity Redistributor, redistributed integrity from core (-304) 38642 | -2/Section 7 | Build established: Scavenger-Gunner 38657 | -2/Section 7 | Spotted Alpha 7 38713 | -2/Section 7 | Destroyed Alpha 7 38751 | -2/Section 7 | Intercept squad dispatched 38758 | -2/Section 7 | Spotted Tracker 38766 | -2/Section 7 | Spotted Tracker 38770 | -2/Section 7 | Destroyed Tracker 38778 | -2/Section 7 | Destroyed Tracker 38779 | -2/Section 7 | Spotted Combat Programmer 38785 | -2/Section 7 | Spotted Combat Programmer 38788 | -2/Section 7 | Destroyed Combat Programmer 38792 | -2/Section 7 | Destroyed Combat Programmer 38889 | -2/Section 7 | Spotted B-99 Colossus 38912 | -2/Section 7 | Destroyed B-99 Colossus 39010 | -2/Section 7 | Destroyed 8 combat bots 39120 | -2/Section 7 | Found Core Expander 39120 | -2/Section 7 | Installed Core Expander, added new Weapon slot 39123 | -2/Section 7 | Found Core Expander 39257 | -2/Section 7 | Found Alien Artifact 39257 | -2/Section 7 | Identified LRC Boosters 39257 | -2/Section 7 | Installed LRC Boosters, increased mass support (+10) 39261 | -2/Section 7 | Destroyed 17 combat bots 39267 | -2/Section 7 | Found Alien Artifact 39267 | -2/Section 7 | Identified LRC Storage 39267 | -2/Section 7 | Installed LRC Storage, increased inventory capacity (+2) 39360 | -2/Section 7 | Found Core Expander 39474 | -2/Section 7 | High security lockdown imminent 39495 | -2/Section 7 | Destroyed 11 combat bots 39541 | -2/Section 7 | Build established: Scavenger-Mutant 39554 | -2/Section 7 | High security lockdown engaged 39640 | -2/Section 7 | Spotted B-90 Cyclops 39653 | -2/Section 7 | Garrison activated, responded to threat 39668 | -2/Section 7 | Spotted Executioner 39668 | -2/Section 7 | Spotted Executioner 39675 | -2/Section 7 | Spotted Executioner 39676 | -2/Section 7 | Spotted Investigator 39677 | -2/Section 7 | Warped through subspace 39706 | -2/Section 7 | Sterilization system engaged 39706 | -2/Section 7 | Non-combat units ordered to evacuate 39709 | -2/Section 7 | Core integrity fell below 50% 39723 | -2/Section 7 | Destroyed 11 combat bots 39729 | -2/Section 7 | Entered Access 39730 | -1/Access | Loaded intel: 111 machine locations 39731 | -1/Access | Used Subatomic Replicator to replicate Vortex Chain Reactor 39737 | -1/Access | Lost 4 parts (1p1n2u) 40017 | -1/Access | First assault squad dispatched 40058 | -1/Access | Spotted B-99 Colossus 40079 | -1/Access | Destroyed B-99 Colossus 40120 | -1/Access | Spotted B-99 Colossus 40188 | -1/Access | Discovered new exit (range 8) 40200 | -1/Access | Entered Command 40201 | -1/Command | Loaded intel: 61 machine locations 40465 | -1/Command | Spotted B-99 Colossus 40500 | -1/Command | First assault squad dispatched 40622 | -1/Command | High security lockdown imminent 40643 | -1/Command | Destroyed 11 combat bots 40702 | -1/Command | High security lockdown engaged 40808 | -1/Command | Lost 9 parts (1n4u4w) 40826 | -1/Command | Destroyed 23 combat bots 40879 | -1/Command | Spotted Executioner 40879 | -1/Command | Spotted Striker 40879 | -1/Command | Spotted Alpha 7 40879 | -1/Command | Spotted Executioner 40879 | -1/Command | Spotted Striker 40879 | -1/Command | Fired Sigix Terminator 40879 | -1/Command | Destroyed Executioner 40879 | -1/Command | Destroyed B-99 Colossus 40879 | -1/Command | Destroyed Executioner 40879 | -1/Command | Destroyed Executioner 40879 | -1/Command | Destroyed Striker 40879 | -1/Command | Destroyed Striker 40879 | -1/Command | Destroyed Alpha 7 40880 | -1/Command | Spotted Executioner 40881 | -1/Command | Spotted Investigator 40883 | -1/Command | Destroyed Investigator 40896 | -1/Command | Spotted B-99 Colossus 40900 | -1/Command | Discovered new exit (range 16) 40907 | -1/Command | Destroyed 12 combat bots 40914 | -1/Command | Destroyed B-99 Colossus 40926 | *** | Escaped! Last Messages --------------- 40905_ Penetrated by Slug. 40909_ Knocked back. 40909_ Penetrated by Slug. 40912_ System corrupted: Graviton Cannon targeting data glitched. 40914_ B-99 Colossus destroyed. 40914_ Penetrated by Slug. 40916_ System corrupted: Graviton Cannon targeting data glitched. 40916_ Destroyed Flexi-carbon Leg. 40916_ L-61 Swordsman knocked back. 40917_ Penetrated by Slug. 40917_ Biometal Heavy Treads destroyed. 40917_ Penetrated by Slug. 40921_ Alpha 7 knocked back. 40922_ Graviton Cannon destroyed. 40923_ Activated siege mode. 40924_ Slug penetrates Executioner. 40924_ Slug penetrates Alpha 7. 40925_ Critical hit. 40925_ Biometal Heavy Treads destroyed. [Achievement: Data Run] Map ----- +----------------------------------------------------+ | | | | | | | | | ?????????????????????????????????????????????????? | | ?????????????????????????????????????????????????? | | ?????????????????????????????????????????????????? | | ?????????????????????????????????????????????????? | | ?????????????????????????????????????????????????? | | ?????????????????????????????????????????????????? | | ?????????????????????? ?????????????????????? | | ???????????????????? ???????????????????? | | ????????????????? ????????????????? | | ??????????????? ??????????????? | | ????"???????? ????????????? | | ????"???????? ????????????? | | ????"??????? ???????????? | | ????T??????? ???????????? | | ????"?????? ;;;;;;;;;;;;;;;; ??????????? | | ????"?????? l ;;;;;;;;;;;;;;;; ??""??????? | | ????"??????";;;;;;;; ;; ?""""?????? | | ?????????? ;;; ;; ;""""?????? | | ?????????? ;;; ;; ;?""??????? | | ?????????" ;;; ;; ; ????????? | | ?????????" ;;; ;; ; ????????? | | ?????????" ;;; @" ;; ; ????????? | | ?????????" ;;; l"" ;; ; ????????? | | ?????""??" ;;; ;; ; ????????? | | ?????"T??" ;;; ;; ; ????????? | | ???????? " ;;; b ;; ;"????????? | | ???????? " ;;; ;; ????????? | | ???????""" ;;; ;; ?????????? | | ???????" " ;;;;;; ;;;;; ;;;;"?????????? | | ???????" " ;;;;; ;;;; ; ?????????? | | ???????" " ; ;;; g ;;; ;;; ?????????"" | | ???????" " ; ;; E ;; ; ?????????"" | | ???????" " ; ;;; g ;;; ; ?????????"" | | ???????" " ; ;; g 7 ;; ; ?""??????"" | | ???????#"""""""""" ;;;i g ;;; " ?"""??????? | | ??????? " "; "" " ??T"??????? | | ???????? " """ """ " """??????? | | ????????#"""" """ """ " ""??????"" | | ?????????# ! """"""""""" """ ?????? "" | | ?????????# " !=* "" " " ???? "" | | ?????????##" "%=%= %* " """"""""""""+### "" | | ????????? ##%"!! = " | | ?????????? " *%][ " | | ?????????+###" =[== "*!! | | ????????????#" "*!! | | ????????????## ! #!!!"###### ######???### | +----------------------------------------------------+ Best States ------------- Heat Dissipation 98 Coolant Potential 65 Energy Generation 85 Energy Capacity 2390 Matter Stores 600 Matter Capacity 600 Sight Range 22 Robot Scan Range 20 Terrain Scan Range 24 Terrain Scan Density 10 Jamming Range 16 Additional Mass Support 10 Armor Coverage 2400 Resistance: KI 40 Resistance: TH 30 Resistance: EX 15 Resistance: EM 90 Resistance: I 15 Resistance: S 15 Resistance: P 15 Utility Shielding 66 Weapon Shielding 100 Weapon Cycling 25 Phase Shifting 20 Evasion (%) 60 Targeting Accuracy 12 Core Analysis 15 Armor Integrity Analysis 90 Recoil Reduction 4 Matter Filtering 50 Kinecelleration 50 Offensive Hacking 25 Defensive Hacking 25 Item Schematics ----------------- Imp. EM Shotgun | -9/Materials | Extracted Lightning Gun | -7/Factory | Extracted Combat Drone Bay | -6/Data Miner | Free Lgt. Regenerative Plating | -6/Data Miner | Free Triangulator | -6/Data Miner | Free Tactical Coordination Suite | -6/Data Miner | Free Exp. Transmission Jammer | -6/Data Miner | Free Cloaking Device | -6/Data Miner | Free Kinetic Spear | -6/Data Miner | Free Hvy. Treads | -5/Factory | Scanalyzed Robot Schematics ------------------ S-27 Virus | -6/Data Miner | Free G-50 Soldier | -6/Data Miner | Free G-67 Veteran | -6/Data Miner | Free X-72 Disruptor | -6/Data Miner | Free H-66 Slayer | -6/Data Miner | Free I-36 Angel | -6/Data Miner | Free Fabricated ------------ Lgt. Regenerative Plating | x1 | -4/Armory Exp. Transmission Jammer | x1 | -3/Research X-72 Disruptor | x2 | -3/Testing Alien Tech Used ----------------- Core Expander Integrated Reactor Subatomic Replicator Sigix Broadsword Sigix Terminator Core Regenerator Integrated Dissipator Integrity Redistributor LRC Boosters LRC Storage Transdimensional Reconstructor Achievements -------------- Anyone Home? Below Data Run Decrypted! Equal Opportunity Bot Killing Spree Challenges ------------ None Game ------ Seed PointReactionBroadsword Manual? 0 Play Time 12:14:16 Cumulative 204.0 hours Start 2020.12.16 @ 19:33:21 End 2020.12.20 @ 09:08:10 Sessions 9 Manual Loads 0 Difficulty Rogue Special Mode None Game No. 114 Rogue 114 Adventurer 0 Explorer 0 Win Type 0 Total 5 Types 4/0/1/0/0/0/0/0/0 Lore% 72 Gallery% 83 Achievement% 71 Wizard Run 0 Options --------- ASCII 0 Keyboard 1 Movement Numpad Keybinds 0 Fullscreen 2 Font 12/Terminus Map View 83x54 Tactical HUD 1 Map Filters NONE Filters NONE Steam 1 RUN: 7a1e1df2-bcb6-4f00-b5b2-9db1326c4313